Body Name,Body,Service division categorisation,Expense Type,Date paid,Transaction Reference,Net,Supplier Name,Redacted/Excluded
East Lindsey District Council,http://statistics.data.gov.uk/id/local-authority/32UC,Theatre Manager,Gas,07/01/2015,IJ00039715,2223.67,ESPO, 
East Lindsey District Council,http://statistics.data.gov.uk/id/local-authority/32UC,Leisure Operations,Gas,07/01/2015,IJ00039715,1511.96,ESPO, 
East Lindsey District Council,http://statistics.data.gov.uk/id/local-authority/32UC,Leisure Operations,Gas,07/01/2015,IJ00039715,7393.46,ESPO, 
East Lindsey District Council,http://statistics.data.gov.uk/id/local-authority/32UC,Leisure Operations,Gas,07/01/2015,IJ00039715,225.56,ESPO, 
East Lindsey District Council,http://statistics.data.gov.uk/id/local-authority/32UC,TL Property,Electricity,07/01/2015,IJ00039715,403.60,ESPO, 
East Lindsey District Council,http://statistics.data.gov.uk/id/local-authority/32UC,TL Property,Electricity,07/01/2015,IJ00039715,123.83,ESPO, 
East Lindsey District Council,http://statistics.data.gov.uk/id/local-authority/32UC,TL Property,Gas,07/01/2015,IJ00039715,12.44,ESPO, 
East Lindsey District Council,http://statistics.data.gov.uk/id/local-authority/32UC,TL Property,Gas,07/01/2015,IJ00039715,2017.32,ESPO, 
East Lindsey District Council,http://statistics.data.gov.uk/id/local-authority/32UC,TL Property,Gas,07/01/2015,IJ00039715,1481.26,ESPO, 
East Lindsey District Council,http://statistics.data.gov.uk/id/local-authority/32UC,Economic & Tourism,Gas,07/01/2015,IJ00039715,379.42,ESPO, 
East Lindsey District Council,http://statistics.data.gov.uk/id/local-authority/32UC,Leisure Operations,Gas,07/01/2015,IJ00039715,322.08,ESPO, 
East Lindsey District Council,http://statistics.data.gov.uk/id/local-authority/32UC,Economic & Tourism,Gas,07/01/2015,IJ00039715,371.96,ESPO, 
East Lindsey District Council,http://statistics.data.gov.uk/id/local-authority/32UC,Leisure Operations,Gas,07/01/2015,IJ00039715,279.15,ESPO, 
East Lindsey District Council,http://statistics.data.gov.uk/id/local-authority/32UC,TL Property,Gas,07/01/2015,IJ00039715,30.90,ESPO, 
East Lindsey District Council,http://statistics.data.gov.uk/id/local-authority/32UC,Economic & Tourism,Gas,07/01/2015,IJ00039715,71.84,ESPO, 
East Lindsey District Council,http://statistics.data.gov.uk/id/local-authority/32UC,Enforcement Team Leader,Other Employee Expenses,07/01/2015,IJ00039710,572.00,Disclosure and Barring Service, 
East Lindsey District Council,http://statistics.data.gov.uk/id/local-authority/32UC,TL Property,Buildings Maintenance - Responsive,08/01/2015,IJ00039660,133.32,HARLITE INSTALLATIONS LTD, 
East Lindsey District Council,http://statistics.data.gov.uk/id/local-authority/32UC,TL Property,Buildings Maintenance - Responsive,08/01/2015,IJ00039660,164.83,HARLITE INSTALLATIONS LTD, 
East Lindsey District Council,http://statistics.data.gov.uk/id/local-authority/32UC,TL Property,Buildings Maintenance - Responsive,08/01/2015,IJ00039660,110.81,HARLITE INSTALLATIONS LTD, 
East Lindsey District Council,http://statistics.data.gov.uk/id/local-authority/32UC,TL Property,Buildings Maintenance - Responsive,08/01/2015,IJ00039660,155.32,HARLITE INSTALLATIONS LTD, 
East Lindsey District Council,http://statistics.data.gov.uk/id/local-authority/32UC,TL Property,Buildings Maintenance - Responsive,08/01/2015,IJ00039660,156.62,HARLITE INSTALLATIONS LTD, 
East Lindsey District Council,http://statistics.data.gov.uk/id/local-authority/32UC,TL Property,Buildings Maintenance - Responsive,08/01/2015,IJ00039660,166.76,HARLITE INSTALLATIONS LTD, 
East Lindsey District Council,http://statistics.data.gov.uk/id/local-authority/32UC,TL Property,Buildings Maintenance - Responsive,08/01/2015,IJ00039660,151.17,HARLITE INSTALLATIONS LTD, 
East Lindsey District Council,http://statistics.data.gov.uk/id/local-authority/32UC,TL Property,Buildings Maintenance - Responsive,08/01/2015,IJ00039660,143.34,HARLITE INSTALLATIONS LTD, 
East Lindsey District Council,http://statistics.data.gov.uk/id/local-authority/32UC,TL Property,Buildings Maintenance - Responsive,08/01/2015,IJ00039660,107.42,HARLITE INSTALLATIONS LTD, 
East Lindsey District Council,http://statistics.data.gov.uk/id/local-authority/32UC,TL Property,Buildings Maintenance - Responsive,08/01/2015,IJ00039660,167.36,HARLITE INSTALLATIONS LTD, 
East Lindsey District Council,http://statistics.data.gov.uk/id/local-authority/32UC,TL Property,Buildings Maintenance - Responsive,08/01/2015,IJ00039660,365.27,HARLITE INSTALLATIONS LTD, 
East Lindsey District Council,http://statistics.data.gov.uk/id/local-authority/32UC,Neighbourhood Services,Buildings Maintenance - Responsive,08/01/2015,IJ00039660,79.44,HARLITE INSTALLATIONS LTD, 
East Lindsey District Council,http://statistics.data.gov.uk/id/local-authority/32UC,Enforcement Team Leader,Buildings Maintenance - Responsive,08/01/2015,IJ00039660,57.35,HARLITE INSTALLATIONS LTD, 
East Lindsey District Council,http://statistics.data.gov.uk/id/local-authority/32UC,TL Property,Buildings Maintenance - Programmed,08/01/2015,IJ00039660,176.31,HARLITE INSTALLATIONS LTD, 
East Lindsey District Council,http://statistics.data.gov.uk/id/local-authority/32UC,Enforcement Team Leader,Buildings Maintenance - Responsive,08/01/2015,IJ00039660,35.81,HARLITE INSTALLATIONS LTD, 
East Lindsey District Council,http://statistics.data.gov.uk/id/local-authority/32UC,Enforcement Team Leader,Buildings Maintenance - Responsive,08/01/2015,IJ00039660,41.07,HARLITE INSTALLATIONS LTD, 
East Lindsey District Council,http://statistics.data.gov.uk/id/local-authority/32UC,TL Property,Buildings Maintenance - Responsive,08/01/2015,IJ00039659,167.67,HARLITE INSTALLATIONS LTD, 
East Lindsey District Council,http://statistics.data.gov.uk/id/local-authority/32UC,TL Property,Buildings Maintenance - Responsive,08/01/2015,IJ00039659,146.17,HARLITE INSTALLATIONS LTD, 
East Lindsey District Council,http://statistics.data.gov.uk/id/local-authority/32UC,TL Property,Buildings Maintenance - Responsive,08/01/2015,IJ00039659,164.93,HARLITE INSTALLATIONS LTD, 
East Lindsey District Council,http://statistics.data.gov.uk/id/local-authority/32UC,TL Property,Buildings Maintenance - Responsive,08/01/2015,IJ00039659,43.43,HARLITE INSTALLATIONS LTD, 
East Lindsey District Council,http://statistics.data.gov.uk/id/local-authority/32UC,TL Property,Buildings Maintenance - Responsive,08/01/2015,IJ00039659,-100.00,HARLITE INSTALLATIONS LTD, 
East Lindsey District Council,http://statistics.data.gov.uk/id/local-authority/32UC,TL Property,Buildings Maintenance - Responsive,08/01/2015,IJ00039659,194.79,HARLITE INSTALLATIONS LTD, 
East Lindsey District Council,http://statistics.data.gov.uk/id/local-authority/32UC,TL Property,Buildings Maintenance - Responsive,08/01/2015,IJ00039659,632.63,HARLITE INSTALLATIONS LTD, 
East Lindsey District Council,http://statistics.data.gov.uk/id/local-authority/32UC,Neighbourhood Services,Buildings Maintenance - Responsive,08/01/2015,IJ00039659,80.48,HARLITE INSTALLATIONS LTD, 
East Lindsey District Council,http://statistics.data.gov.uk/id/local-authority/32UC,Enforcement Team Leader,Buildings Maintenance - Responsive,08/01/2015,IJ00039659,35.42,HARLITE INSTALLATIONS LTD, 
East Lindsey District Council,http://statistics.data.gov.uk/id/local-authority/32UC,Hsg Private Sector TL,Other Income,08/01/2015,IJ00039739,-473.46,SIBJON BUILDERS, 
East Lindsey District Council,http://statistics.data.gov.uk/id/local-authority/32UC,Hsg Private Sector TL,Grants and Contributions to Outside Bodies- No Service Recei,08/01/2015,IJ00039739,1013.21,SIBJON BUILDERS, 
East Lindsey District Council,http://statistics.data.gov.uk/id/local-authority/32UC,"Performance, Governance & Commissioning",Agency Staff,08/01/2015,IJ00039484,3811.40,BOSTON BOROUGH COUNCIL, 
East Lindsey District Council,http://statistics.data.gov.uk/id/local-authority/32UC,Waste Services Manager,Telephones,08/01/2015,IJ00039519,106.03,VODAFONE CORPORATE LIMITED, 
East Lindsey District Council,http://statistics.data.gov.uk/id/local-authority/32UC,Communications Manager,Telephones,08/01/2015,IJ00039519,27.99,VODAFONE CORPORATE LIMITED, 
East Lindsey District Council,http://statistics.data.gov.uk/id/local-authority/32UC,Theatre Manager,Telephones,08/01/2015,IJ00039519,72.48,VODAFONE CORPORATE LIMITED, 
East Lindsey District Council,http://statistics.data.gov.uk/id/local-authority/32UC,Development Control,Telephones,08/01/2015,IJ00039519,12.93,VODAFONE CORPORATE LIMITED, 
East Lindsey District Council,http://statistics.data.gov.uk/id/local-authority/32UC,Enforcement Team Leader,Telephones,08/01/2015,IJ00039519,68.44,VODAFONE CORPORATE LIMITED, 
East Lindsey District Council,http://statistics.data.gov.uk/id/local-authority/32UC,Enforcement Team Leader,Telephones,08/01/2015,IJ00039519,27.18,VODAFONE CORPORATE LIMITED, 
East Lindsey District Council,http://statistics.data.gov.uk/id/local-authority/32UC,Building Control,Telephones,08/01/2015,IJ00039519,13.22,VODAFONE CORPORATE LIMITED, 
East Lindsey District Council,http://statistics.data.gov.uk/id/local-authority/32UC,Hsg Private Sector TL,Telephones,08/01/2015,IJ00039519,33.27,VODAFONE CORPORATE LIMITED, 
East Lindsey District Council,http://statistics.data.gov.uk/id/local-authority/32UC,Enforcement Team Leader,Telephones,08/01/2015,IJ00039519,267.89,VODAFONE CORPORATE LIMITED, 
East Lindsey District Council,http://statistics.data.gov.uk/id/local-authority/32UC,Cultural & Related Services,Telephones,08/01/2015,IJ00039519,33.46,VODAFONE CORPORATE LIMITED, 
East Lindsey District Council,http://statistics.data.gov.uk/id/local-authority/32UC,Hsg Advice & Homelessness TL,Telephones,08/01/2015,IJ00039519,23.16,VODAFONE CORPORATE LIMITED, 
East Lindsey District Council,http://statistics.data.gov.uk/id/local-authority/32UC,Hsg Private Sector TL,Telephones,08/01/2015,IJ00039519,75.73,VODAFONE CORPORATE LIMITED, 
East Lindsey District Council,http://statistics.data.gov.uk/id/local-authority/32UC,Hsg Advice & Homelessness TL,Telephones,08/01/2015,IJ00039519,93.61,VODAFONE CORPORATE LIMITED, 
East Lindsey District Council,http://statistics.data.gov.uk/id/local-authority/32UC,Waste Services Manager,Telephones,08/01/2015,IJ00039519,26.99,VODAFONE CORPORATE LIMITED, 
East Lindsey District Council,http://statistics.data.gov.uk/id/local-authority/32UC,Building Control,Telephones,08/01/2015,IJ00039519,136.72,VODAFONE CORPORATE LIMITED, 
East Lindsey District Council,http://statistics.data.gov.uk/id/local-authority/32UC,Economic & Tourism,Telephones,08/01/2015,IJ00039519,2.81,VODAFONE CORPORATE LIMITED, 
East Lindsey District Council,http://statistics.data.gov.uk/id/local-authority/32UC,Corporate Management,Telephones,08/01/2015,IJ00039519,60.60,VODAFONE CORPORATE LIMITED, 
East Lindsey District Council,http://statistics.data.gov.uk/id/local-authority/32UC,Leisure Operations,Telephones,08/01/2015,IJ00039519,10.09,VODAFONE CORPORATE LIMITED, 
East Lindsey District Council,http://statistics.data.gov.uk/id/local-authority/32UC,Leisure Operations,Telephones,08/01/2015,IJ00039519,3.07,VODAFONE CORPORATE LIMITED, 
East Lindsey District Council,http://statistics.data.gov.uk/id/local-authority/32UC,Leisure Operations,Telephones,08/01/2015,IJ00039519,66.85,VODAFONE CORPORATE LIMITED, 
East Lindsey District Council,http://statistics.data.gov.uk/id/local-authority/32UC,Leisure Operations,Telephones,08/01/2015,IJ00039519,17.90,VODAFONE CORPORATE LIMITED, 
East Lindsey District Council,http://statistics.data.gov.uk/id/local-authority/32UC,Neighbourhood Services,Telephones,08/01/2015,IJ00039519,131.63,VODAFONE CORPORATE LIMITED, 
East Lindsey District Council,http://statistics.data.gov.uk/id/local-authority/32UC,Neighbourhood Services,Telephones,08/01/2015,IJ00039519,11.69,VODAFONE CORPORATE LIMITED, 
East Lindsey District Council,http://statistics.data.gov.uk/id/local-authority/32UC,TL Property,Telephones,08/01/2015,IJ00039519,132.30,VODAFONE CORPORATE LIMITED, 
East Lindsey District Council,http://statistics.data.gov.uk/id/local-authority/32UC,Economic & Tourism,Telephones,08/01/2015,IJ00039519,20.99,VODAFONE CORPORATE LIMITED, 
East Lindsey District Council,http://statistics.data.gov.uk/id/local-authority/32UC,"Performance, Governance & Commissioning",Telephones,08/01/2015,IJ00039519,171.25,VODAFONE CORPORATE LIMITED, 
East Lindsey District Council,http://statistics.data.gov.uk/id/local-authority/32UC,Enforcement Team Leader,Telephones,08/01/2015,IJ00039519,6.75,VODAFONE CORPORATE LIMITED, 
East Lindsey District Council,http://statistics.data.gov.uk/id/local-authority/32UC,Environment Team Leader,Telephones,08/01/2015,IJ00039519,119.26,VODAFONE CORPORATE LIMITED, 
East Lindsey District Council,http://statistics.data.gov.uk/id/local-authority/32UC,Cultural & Related Services,Telephones,08/01/2015,IJ00039519,45.80,VODAFONE CORPORATE LIMITED, 
East Lindsey District Council,http://statistics.data.gov.uk/id/local-authority/32UC,Cultural & Related Services,Telephones,08/01/2015,IJ00039519,17.01,VODAFONE CORPORATE LIMITED, 
East Lindsey District Council,http://statistics.data.gov.uk/id/local-authority/32UC,Cultural & Related Services,Telephones,08/01/2015,IJ00039519,33.60,VODAFONE CORPORATE LIMITED, 
East Lindsey District Council,http://statistics.data.gov.uk/id/local-authority/32UC,Cultural & Related Services,Telephones,08/01/2015,IJ00039519,5.69,VODAFONE CORPORATE LIMITED, 
East Lindsey District Council,http://statistics.data.gov.uk/id/local-authority/32UC,Hsg Private Sector TL,Telephones,08/01/2015,IJ00039519,58.53,VODAFONE CORPORATE LIMITED, 
East Lindsey District Council,http://statistics.data.gov.uk/id/local-authority/32UC,"Performance, Governance & Commissioning",Telephones,08/01/2015,IJ00039519,12.85,VODAFONE CORPORATE LIMITED, 
East Lindsey District Council,http://statistics.data.gov.uk/id/local-authority/32UC,Planning Policy,Telephones,08/01/2015,IJ00039519,33.67,VODAFONE CORPORATE LIMITED, 
East Lindsey District Council,http://statistics.data.gov.uk/id/local-authority/32UC,Economic & Tourism,Telephones,08/01/2015,IJ00039519,76.78,VODAFONE CORPORATE LIMITED, 
East Lindsey District Council,http://statistics.data.gov.uk/id/local-authority/32UC,Cultural & Related Services,Telephones,08/01/2015,IJ00039519,144.28,VODAFONE CORPORATE LIMITED, 
East Lindsey District Council,http://statistics.data.gov.uk/id/local-authority/32UC,Neighbourhood Services,Telephones,08/01/2015,IJ00039519,88.08,VODAFONE CORPORATE LIMITED, 
East Lindsey District Council,http://statistics.data.gov.uk/id/local-authority/32UC,Neighbourhood Services,Telephones,08/01/2015,IJ00039519,172.68,VODAFONE CORPORATE LIMITED, 
East Lindsey District Council,http://statistics.data.gov.uk/id/local-authority/32UC,Theatre Manager,Telephones,08/01/2015,IJ00039519,2.81,VODAFONE CORPORATE LIMITED, 
East Lindsey District Council,http://statistics.data.gov.uk/id/local-authority/32UC,Enforcement Team Leader,Telephones,08/01/2015,IJ00039519,13.50,VODAFONE CORPORATE LIMITED, 
East Lindsey District Council,http://statistics.data.gov.uk/id/local-authority/32UC,Enforcement Team Leader,Telephones,08/01/2015,IJ00039519,6.75,VODAFONE CORPORATE LIMITED, 
East Lindsey District Council,http://statistics.data.gov.uk/id/local-authority/32UC,Enforcement Team Leader,Telephones,08/01/2015,IJ00039519,6.75,VODAFONE CORPORATE LIMITED, 
East Lindsey District Council,http://statistics.data.gov.uk/id/local-authority/32UC,Enforcement Team Leader,Telephones,08/01/2015,IJ00039519,33.75,VODAFONE CORPORATE LIMITED, 
East Lindsey District Council,http://statistics.data.gov.uk/id/local-authority/32UC,Enforcement Team Leader,Telephones,08/01/2015,IJ00039519,6.75,VODAFONE CORPORATE LIMITED, 
East Lindsey District Council,http://statistics.data.gov.uk/id/local-authority/32UC,Enforcement Team Leader,Telephones,08/01/2015,IJ00039519,6.75,VODAFONE CORPORATE LIMITED, 
East Lindsey District Council,http://statistics.data.gov.uk/id/local-authority/32UC,Enforcement Team Leader,Telephones,08/01/2015,IJ00039519,20.25,VODAFONE CORPORATE LIMITED, 
East Lindsey District Council,http://statistics.data.gov.uk/id/local-authority/32UC,Enforcement Team Leader,Telephones,08/01/2015,IJ00039519,6.75,VODAFONE CORPORATE LIMITED, 
East Lindsey District Council,http://statistics.data.gov.uk/id/local-authority/32UC,Enforcement Team Leader,Telephones,08/01/2015,IJ00039519,13.50,VODAFONE CORPORATE LIMITED, 
East Lindsey District Council,http://statistics.data.gov.uk/id/local-authority/32UC,Enforcement Team Leader,Telephones,08/01/2015,IJ00039519,6.75,VODAFONE CORPORATE LIMITED, 
East Lindsey District Council,http://statistics.data.gov.uk/id/local-authority/32UC,Enforcement Team Leader,Telephones,08/01/2015,IJ00039519,6.75,VODAFONE CORPORATE LIMITED, 
East Lindsey District Council,http://statistics.data.gov.uk/id/local-authority/32UC,Enforcement Team Leader,Telephones,08/01/2015,IJ00039519,6.75,VODAFONE CORPORATE LIMITED, 
East Lindsey District Council,http://statistics.data.gov.uk/id/local-authority/32UC,Enforcement Team Leader,Telephones,08/01/2015,IJ00039519,6.75,VODAFONE CORPORATE LIMITED, 
East Lindsey District Council,http://statistics.data.gov.uk/id/local-authority/32UC,Enforcement Team Leader,Telephones,08/01/2015,IJ00039519,13.50,VODAFONE CORPORATE LIMITED, 
East Lindsey District Council,http://statistics.data.gov.uk/id/local-authority/32UC,Enforcement Team Leader,Telephones,08/01/2015,IJ00039519,6.75,VODAFONE CORPORATE LIMITED, 
East Lindsey District Council,http://statistics.data.gov.uk/id/local-authority/32UC,Enforcement Team Leader,Telephones,08/01/2015,IJ00039519,6.75,VODAFONE CORPORATE LIMITED, 
East Lindsey District Council,http://statistics.data.gov.uk/id/local-authority/32UC,Enforcement Team Leader,Telephones,08/01/2015,IJ00039519,6.75,VODAFONE CORPORATE LIMITED, 
East Lindsey District Council,http://statistics.data.gov.uk/id/local-authority/32UC,Enforcement Team Leader,Telephones,08/01/2015,IJ00039519,6.75,VODAFONE CORPORATE LIMITED, 
East Lindsey District Council,http://statistics.data.gov.uk/id/local-authority/32UC,Enforcement Team Leader,Telephones,08/01/2015,IJ00039519,13.50,VODAFONE CORPORATE LIMITED, 
East Lindsey District Council,http://statistics.data.gov.uk/id/local-authority/32UC,Enforcement Team Leader,Telephones,08/01/2015,IJ00039519,13.50,VODAFONE CORPORATE LIMITED, 
East Lindsey District Council,http://statistics.data.gov.uk/id/local-authority/32UC,Enforcement Team Leader,Telephones,08/01/2015,IJ00039519,6.75,VODAFONE CORPORATE LIMITED, 
East Lindsey District Council,http://statistics.data.gov.uk/id/local-authority/32UC,Enforcement Team Leader,Telephones,08/01/2015,IJ00039519,6.75,VODAFONE CORPORATE LIMITED, 
East Lindsey District Council,http://statistics.data.gov.uk/id/local-authority/32UC,Enforcement Team Leader,Telephones,08/01/2015,IJ00039519,20.25,VODAFONE CORPORATE LIMITED, 
East Lindsey District Council,http://statistics.data.gov.uk/id/local-authority/32UC,Enforcement Team Leader,Telephones,08/01/2015,IJ00039519,13.50,VODAFONE CORPORATE LIMITED, 
East Lindsey District Council,http://statistics.data.gov.uk/id/local-authority/32UC,Enforcement Team Leader,Telephones,08/01/2015,IJ00039519,6.75,VODAFONE CORPORATE LIMITED, 
East Lindsey District Council,http://statistics.data.gov.uk/id/local-authority/32UC,Enforcement Team Leader,Telephones,08/01/2015,IJ00039519,13.50,VODAFONE CORPORATE LIMITED, 
East Lindsey District Council,http://statistics.data.gov.uk/id/local-authority/32UC,Enforcement Team Leader,Telephones,08/01/2015,IJ00039519,13.50,VODAFONE CORPORATE LIMITED, 
East Lindsey District Council,http://statistics.data.gov.uk/id/local-authority/32UC,Enforcement Team Leader,Telephones,08/01/2015,IJ00039519,6.75,VODAFONE CORPORATE LIMITED, 
East Lindsey District Council,http://statistics.data.gov.uk/id/local-authority/32UC,Enforcement Team Leader,Telephones,08/01/2015,IJ00039519,20.25,VODAFONE CORPORATE LIMITED, 
East Lindsey District Council,http://statistics.data.gov.uk/id/local-authority/32UC,Enforcement Team Leader,Telephones,08/01/2015,IJ00039519,6.75,VODAFONE CORPORATE LIMITED, 
East Lindsey District Council,http://statistics.data.gov.uk/id/local-authority/32UC,Enforcement Team Leader,Telephones,08/01/2015,IJ00039519,13.50,VODAFONE CORPORATE LIMITED, 
East Lindsey District Council,http://statistics.data.gov.uk/id/local-authority/32UC,Enforcement Team Leader,Telephones,08/01/2015,IJ00039519,6.75,VODAFONE CORPORATE LIMITED, 
East Lindsey District Council,http://statistics.data.gov.uk/id/local-authority/32UC,Enforcement Team Leader,Telephones,08/01/2015,IJ00039519,13.50,VODAFONE CORPORATE LIMITED, 
East Lindsey District Council,http://statistics.data.gov.uk/id/local-authority/32UC,Enforcement Team Leader,Telephones,08/01/2015,IJ00039519,13.50,VODAFONE CORPORATE LIMITED, 
East Lindsey District Council,http://statistics.data.gov.uk/id/local-authority/32UC,Enforcement Team Leader,Telephones,08/01/2015,IJ00039519,6.75,VODAFONE CORPORATE LIMITED, 
East Lindsey District Council,http://statistics.data.gov.uk/id/local-authority/32UC,Enforcement Team Leader,Telephones,08/01/2015,IJ00039519,6.75,VODAFONE CORPORATE LIMITED, 
East Lindsey District Council,http://statistics.data.gov.uk/id/local-authority/32UC,Enforcement Team Leader,Telephones,08/01/2015,IJ00039519,6.75,VODAFONE CORPORATE LIMITED, 
East Lindsey District Council,http://statistics.data.gov.uk/id/local-authority/32UC,Enforcement Team Leader,Telephones,08/01/2015,IJ00039519,6.75,VODAFONE CORPORATE LIMITED, 
East Lindsey District Council,http://statistics.data.gov.uk/id/local-authority/32UC,Enforcement Team Leader,Telephones,08/01/2015,IJ00039519,6.75,VODAFONE CORPORATE LIMITED, 
East Lindsey District Council,http://statistics.data.gov.uk/id/local-authority/32UC,Enforcement Team Leader,Telephones,08/01/2015,IJ00039519,6.75,VODAFONE CORPORATE LIMITED, 
East Lindsey District Council,http://statistics.data.gov.uk/id/local-authority/32UC,Enforcement Team Leader,Telephones,08/01/2015,IJ00039519,6.75,VODAFONE CORPORATE LIMITED, 
East Lindsey District Council,http://statistics.data.gov.uk/id/local-authority/32UC,Enforcement Team Leader,Telephones,08/01/2015,IJ00039519,13.50,VODAFONE CORPORATE LIMITED, 
East Lindsey District Council,http://statistics.data.gov.uk/id/local-authority/32UC,Enforcement Team Leader,Telephones,08/01/2015,IJ00039519,6.75,VODAFONE CORPORATE LIMITED, 
East Lindsey District Council,http://statistics.data.gov.uk/id/local-authority/32UC,Enforcement Team Leader,Telephones,08/01/2015,IJ00039519,6.75,VODAFONE CORPORATE LIMITED, 
East Lindsey District Council,http://statistics.data.gov.uk/id/local-authority/32UC,Enforcement Team Leader,Telephones,08/01/2015,IJ00039519,6.75,VODAFONE CORPORATE LIMITED, 
East Lindsey District Council,http://statistics.data.gov.uk/id/local-authority/32UC,Enforcement Team Leader,Telephones,08/01/2015,IJ00039519,6.75,VODAFONE CORPORATE LIMITED, 
East Lindsey District Council,http://statistics.data.gov.uk/id/local-authority/32UC,Enforcement Team Leader,Telephones,08/01/2015,IJ00039519,13.50,VODAFONE CORPORATE LIMITED, 
East Lindsey District Council,http://statistics.data.gov.uk/id/local-authority/32UC,Enforcement Team Leader,Telephones,08/01/2015,IJ00039519,6.75,VODAFONE CORPORATE LIMITED, 
East Lindsey District Council,http://statistics.data.gov.uk/id/local-authority/32UC,Enforcement Team Leader,Telephones,08/01/2015,IJ00039519,6.75,VODAFONE CORPORATE LIMITED, 
East Lindsey District Council,http://statistics.data.gov.uk/id/local-authority/32UC,Enforcement Team Leader,Telephones,08/01/2015,IJ00039519,6.75,VODAFONE CORPORATE LIMITED, 
East Lindsey District Council,http://statistics.data.gov.uk/id/local-authority/32UC,Enforcement Team Leader,Telephones,08/01/2015,IJ00039519,6.75,VODAFONE CORPORATE LIMITED, 
East Lindsey District Council,http://statistics.data.gov.uk/id/local-authority/32UC,Hsg Advice & Homelessness TL,Telephones,08/01/2015,IJ00039519,300.89,VODAFONE CORPORATE LIMITED, 
East Lindsey District Council,http://statistics.data.gov.uk/id/local-authority/32UC,Environment Team Leader,Telephones,08/01/2015,IJ00039519,186.84,VODAFONE CORPORATE LIMITED, 
East Lindsey District Council,http://statistics.data.gov.uk/id/local-authority/32UC,Cultural & Related Services,Telephones,08/01/2015,IJ00039519,20.49,VODAFONE CORPORATE LIMITED, 
East Lindsey District Council,http://statistics.data.gov.uk/id/local-authority/32UC,Waste Services Manager,Telephones,08/01/2015,IJ00039518,29.56,VODAFONE CORPORATE LIMITED, 
East Lindsey District Council,http://statistics.data.gov.uk/id/local-authority/32UC,Waste Services Manager,Telephones,08/01/2015,IJ00039518,110.14,VODAFONE CORPORATE LIMITED, 
East Lindsey District Council,http://statistics.data.gov.uk/id/local-authority/32UC,Communications Manager,Telephones,08/01/2015,IJ00039518,29.72,VODAFONE CORPORATE LIMITED, 
East Lindsey District Council,http://statistics.data.gov.uk/id/local-authority/32UC,Theatre Manager,Telephones,08/01/2015,IJ00039518,72.48,VODAFONE CORPORATE LIMITED, 
East Lindsey District Council,http://statistics.data.gov.uk/id/local-authority/32UC,Development Control,Telephones,08/01/2015,IJ00039518,12.85,VODAFONE CORPORATE LIMITED, 
East Lindsey District Council,http://statistics.data.gov.uk/id/local-authority/32UC,Enforcement Team Leader,Telephones,08/01/2015,IJ00039518,73.65,VODAFONE CORPORATE LIMITED, 
East Lindsey District Council,http://statistics.data.gov.uk/id/local-authority/32UC,Enforcement Team Leader,Telephones,08/01/2015,IJ00039518,25.79,VODAFONE CORPORATE LIMITED, 
East Lindsey District Council,http://statistics.data.gov.uk/id/local-authority/32UC,Building Control,Telephones,08/01/2015,IJ00039518,13.07,VODAFONE CORPORATE LIMITED, 
East Lindsey District Council,http://statistics.data.gov.uk/id/local-authority/32UC,Hsg Private Sector TL,Telephones,08/01/2015,IJ00039518,34.03,VODAFONE CORPORATE LIMITED, 
East Lindsey District Council,http://statistics.data.gov.uk/id/local-authority/32UC,Enforcement Team Leader,Telephones,08/01/2015,IJ00039518,263.31,VODAFONE CORPORATE LIMITED, 
East Lindsey District Council,http://statistics.data.gov.uk/id/local-authority/32UC,Cultural & Related Services,Telephones,08/01/2015,IJ00039518,29.59,VODAFONE CORPORATE LIMITED, 
East Lindsey District Council,http://statistics.data.gov.uk/id/local-authority/32UC,Hsg Advice & Homelessness TL,Telephones,08/01/2015,IJ00039518,22.89,VODAFONE CORPORATE LIMITED, 
East Lindsey District Council,http://statistics.data.gov.uk/id/local-authority/32UC,Hsg Private Sector TL,Telephones,08/01/2015,IJ00039518,72.96,VODAFONE CORPORATE LIMITED, 
East Lindsey District Council,http://statistics.data.gov.uk/id/local-authority/32UC,Hsg Advice & Homelessness TL,Telephones,08/01/2015,IJ00039518,90.99,VODAFONE CORPORATE LIMITED, 
East Lindsey District Council,http://statistics.data.gov.uk/id/local-authority/32UC,Waste Services Manager,Telephones,08/01/2015,IJ00039518,29.02,VODAFONE CORPORATE LIMITED, 
East Lindsey District Council,http://statistics.data.gov.uk/id/local-authority/32UC,Building Control,Telephones,08/01/2015,IJ00039518,185.47,VODAFONE CORPORATE LIMITED, 
East Lindsey District Council,http://statistics.data.gov.uk/id/local-authority/32UC,Economic & Tourism,Telephones,08/01/2015,IJ00039518,2.81,VODAFONE CORPORATE LIMITED, 
East Lindsey District Council,http://statistics.data.gov.uk/id/local-authority/32UC,Corporate Management,Telephones,08/01/2015,IJ00039518,57.56,VODAFONE CORPORATE LIMITED, 
East Lindsey District Council,http://statistics.data.gov.uk/id/local-authority/32UC,Leisure Operations,Telephones,08/01/2015,IJ00039518,10.84,VODAFONE CORPORATE LIMITED, 
East Lindsey District Council,http://statistics.data.gov.uk/id/local-authority/32UC,Leisure Operations,Telephones,08/01/2015,IJ00039518,5.20,VODAFONE CORPORATE LIMITED, 
East Lindsey District Council,http://statistics.data.gov.uk/id/local-authority/32UC,Leisure Operations,Telephones,08/01/2015,IJ00039518,43.75,VODAFONE CORPORATE LIMITED, 
East Lindsey District Council,http://statistics.data.gov.uk/id/local-authority/32UC,Leisure Operations,Telephones,08/01/2015,IJ00039518,13.97,VODAFONE CORPORATE LIMITED, 
East Lindsey District Council,http://statistics.data.gov.uk/id/local-authority/32UC,Neighbourhood Services,Telephones,08/01/2015,IJ00039518,8.96,VODAFONE CORPORATE LIMITED, 
East Lindsey District Council,http://statistics.data.gov.uk/id/local-authority/32UC,Neighbourhood Services,Telephones,08/01/2015,IJ00039518,132.76,VODAFONE CORPORATE LIMITED, 
East Lindsey District Council,http://statistics.data.gov.uk/id/local-authority/32UC,Neighbourhood Services,Telephones,08/01/2015,IJ00039518,10.81,VODAFONE CORPORATE LIMITED, 
East Lindsey District Council,http://statistics.data.gov.uk/id/local-authority/32UC,TL Property,Telephones,08/01/2015,IJ00039518,135.78,VODAFONE CORPORATE LIMITED, 
East Lindsey District Council,http://statistics.data.gov.uk/id/local-authority/32UC,Economic & Tourism,Telephones,08/01/2015,IJ00039518,23.75,VODAFONE CORPORATE LIMITED, 
East Lindsey District Council,http://statistics.data.gov.uk/id/local-authority/32UC,"Performance, Governance & Commissioning",Telephones,08/01/2015,IJ00039518,171.25,VODAFONE CORPORATE LIMITED, 
East Lindsey District Council,http://statistics.data.gov.uk/id/local-authority/32UC,Enforcement Team Leader,Telephones,08/01/2015,IJ00039518,6.75,VODAFONE CORPORATE LIMITED, 
East Lindsey District Council,http://statistics.data.gov.uk/id/local-authority/32UC,Environment Team Leader,Telephones,08/01/2015,IJ00039518,125.05,VODAFONE CORPORATE LIMITED, 
East Lindsey District Council,http://statistics.data.gov.uk/id/local-authority/32UC,Cultural & Related Services,Telephones,08/01/2015,IJ00039518,49.37,VODAFONE CORPORATE LIMITED, 
East Lindsey District Council,http://statistics.data.gov.uk/id/local-authority/32UC,Cultural & Related Services,Telephones,08/01/2015,IJ00039518,16.54,VODAFONE CORPORATE LIMITED, 
East Lindsey District Council,http://statistics.data.gov.uk/id/local-authority/32UC,Cultural & Related Services,Telephones,08/01/2015,IJ00039518,17.65,VODAFONE CORPORATE LIMITED, 
East Lindsey District Council,http://statistics.data.gov.uk/id/local-authority/32UC,Cultural & Related Services,Telephones,08/01/2015,IJ00039518,5.22,VODAFONE CORPORATE LIMITED, 
East Lindsey District Council,http://statistics.data.gov.uk/id/local-authority/32UC,Hsg Private Sector TL,Telephones,08/01/2015,IJ00039518,59.68,VODAFONE CORPORATE LIMITED, 
East Lindsey District Council,http://statistics.data.gov.uk/id/local-authority/32UC,"Performance, Governance & Commissioning",Telephones,08/01/2015,IJ00039518,12.85,VODAFONE CORPORATE LIMITED, 
East Lindsey District Council,http://statistics.data.gov.uk/id/local-authority/32UC,Planning Policy,Telephones,08/01/2015,IJ00039518,30.88,VODAFONE CORPORATE LIMITED, 
East Lindsey District Council,http://statistics.data.gov.uk/id/local-authority/32UC,Economic & Tourism,Telephones,08/01/2015,IJ00039518,86.81,VODAFONE CORPORATE LIMITED, 
East Lindsey District Council,http://statistics.data.gov.uk/id/local-authority/32UC,Cultural & Related Services,Telephones,08/01/2015,IJ00039518,148.56,VODAFONE CORPORATE LIMITED, 
East Lindsey District Council,http://statistics.data.gov.uk/id/local-authority/32UC,Neighbourhood Services,Telephones,08/01/2015,IJ00039518,102.36,VODAFONE CORPORATE LIMITED, 
East Lindsey District Council,http://statistics.data.gov.uk/id/local-authority/32UC,Neighbourhood Services,Telephones,08/01/2015,IJ00039518,173.64,VODAFONE CORPORATE LIMITED, 
East Lindsey District Council,http://statistics.data.gov.uk/id/local-authority/32UC,Theatre Manager,Telephones,08/01/2015,IJ00039518,2.81,VODAFONE CORPORATE LIMITED, 
East Lindsey District Council,http://statistics.data.gov.uk/id/local-authority/32UC,Enforcement Team Leader,Telephones,08/01/2015,IJ00039518,13.50,VODAFONE CORPORATE LIMITED, 
East Lindsey District Council,http://statistics.data.gov.uk/id/local-authority/32UC,Enforcement Team Leader,Telephones,08/01/2015,IJ00039518,6.75,VODAFONE CORPORATE LIMITED, 
East Lindsey District Council,http://statistics.data.gov.uk/id/local-authority/32UC,Enforcement Team Leader,Telephones,08/01/2015,IJ00039518,6.75,VODAFONE CORPORATE LIMITED, 
East Lindsey District Council,http://statistics.data.gov.uk/id/local-authority/32UC,Enforcement Team Leader,Telephones,08/01/2015,IJ00039518,33.75,VODAFONE CORPORATE LIMITED, 
East Lindsey District Council,http://statistics.data.gov.uk/id/local-authority/32UC,Enforcement Team Leader,Telephones,08/01/2015,IJ00039518,6.75,VODAFONE CORPORATE LIMITED, 
East Lindsey District Council,http://statistics.data.gov.uk/id/local-authority/32UC,Enforcement Team Leader,Telephones,08/01/2015,IJ00039518,6.75,VODAFONE CORPORATE LIMITED, 
East Lindsey District Council,http://statistics.data.gov.uk/id/local-authority/32UC,Enforcement Team Leader,Telephones,08/01/2015,IJ00039518,20.25,VODAFONE CORPORATE LIMITED, 
East Lindsey District Council,http://statistics.data.gov.uk/id/local-authority/32UC,Enforcement Team Leader,Telephones,08/01/2015,IJ00039518,6.75,VODAFONE CORPORATE LIMITED, 
East Lindsey District Council,http://statistics.data.gov.uk/id/local-authority/32UC,Enforcement Team Leader,Telephones,08/01/2015,IJ00039518,13.50,VODAFONE CORPORATE LIMITED, 
East Lindsey District Council,http://statistics.data.gov.uk/id/local-authority/32UC,Enforcement Team Leader,Telephones,08/01/2015,IJ00039518,6.75,VODAFONE CORPORATE LIMITED, 
East Lindsey District Council,http://statistics.data.gov.uk/id/local-authority/32UC,Enforcement Team Leader,Telephones,08/01/2015,IJ00039518,6.75,VODAFONE CORPORATE LIMITED, 
East Lindsey District Council,http://statistics.data.gov.uk/id/local-authority/32UC,Enforcement Team Leader,Telephones,08/01/2015,IJ00039518,6.75,VODAFONE CORPORATE LIMITED, 
East Lindsey District Council,http://statistics.data.gov.uk/id/local-authority/32UC,Enforcement Team Leader,Telephones,08/01/2015,IJ00039518,6.75,VODAFONE CORPORATE LIMITED, 
East Lindsey District Council,http://statistics.data.gov.uk/id/local-authority/32UC,Enforcement Team Leader,Telephones,08/01/2015,IJ00039518,13.50,VODAFONE CORPORATE LIMITED, 
East Lindsey District Council,http://statistics.data.gov.uk/id/local-authority/32UC,Enforcement Team Leader,Telephones,08/01/2015,IJ00039518,6.75,VODAFONE CORPORATE LIMITED, 
East Lindsey District Council,http://statistics.data.gov.uk/id/local-authority/32UC,Enforcement Team Leader,Telephones,08/01/2015,IJ00039518,6.75,VODAFONE CORPORATE LIMITED, 
East Lindsey District Council,http://statistics.data.gov.uk/id/local-authority/32UC,Enforcement Team Leader,Telephones,08/01/2015,IJ00039518,6.75,VODAFONE CORPORATE LIMITED, 
East Lindsey District Council,http://statistics.data.gov.uk/id/local-authority/32UC,Enforcement Team Leader,Telephones,08/01/2015,IJ00039518,6.75,VODAFONE CORPORATE LIMITED, 
East Lindsey District Council,http://statistics.data.gov.uk/id/local-authority/32UC,Enforcement Team Leader,Telephones,08/01/2015,IJ00039518,13.50,VODAFONE CORPORATE LIMITED, 
East Lindsey District Council,http://statistics.data.gov.uk/id/local-authority/32UC,Enforcement Team Leader,Telephones,08/01/2015,IJ00039518,13.50,VODAFONE CORPORATE LIMITED, 
East Lindsey District Council,http://statistics.data.gov.uk/id/local-authority/32UC,Enforcement Team Leader,Telephones,08/01/2015,IJ00039518,6.75,VODAFONE CORPORATE LIMITED, 
East Lindsey District Council,http://statistics.data.gov.uk/id/local-authority/32UC,Enforcement Team Leader,Telephones,08/01/2015,IJ00039518,6.75,VODAFONE CORPORATE LIMITED, 
East Lindsey District Council,http://statistics.data.gov.uk/id/local-authority/32UC,Enforcement Team Leader,Telephones,08/01/2015,IJ00039518,20.25,VODAFONE CORPORATE LIMITED, 
East Lindsey District Council,http://statistics.data.gov.uk/id/local-authority/32UC,Enforcement Team Leader,Telephones,08/01/2015,IJ00039518,13.50,VODAFONE CORPORATE LIMITED, 
East Lindsey District Council,http://statistics.data.gov.uk/id/local-authority/32UC,Enforcement Team Leader,Telephones,08/01/2015,IJ00039518,6.75,VODAFONE CORPORATE LIMITED, 
East Lindsey District Council,http://statistics.data.gov.uk/id/local-authority/32UC,Enforcement Team Leader,Telephones,08/01/2015,IJ00039518,13.50,VODAFONE CORPORATE LIMITED, 
East Lindsey District Council,http://statistics.data.gov.uk/id/local-authority/32UC,Enforcement Team Leader,Telephones,08/01/2015,IJ00039518,13.50,VODAFONE CORPORATE LIMITED, 
East Lindsey District Council,http://statistics.data.gov.uk/id/local-authority/32UC,Enforcement Team Leader,Telephones,08/01/2015,IJ00039518,6.75,VODAFONE CORPORATE LIMITED, 
East Lindsey District Council,http://statistics.data.gov.uk/id/local-authority/32UC,Enforcement Team Leader,Telephones,08/01/2015,IJ00039518,20.25,VODAFONE CORPORATE LIMITED, 
East Lindsey District Council,http://statistics.data.gov.uk/id/local-authority/32UC,Enforcement Team Leader,Telephones,08/01/2015,IJ00039518,6.75,VODAFONE CORPORATE LIMITED, 
East Lindsey District Council,http://statistics.data.gov.uk/id/local-authority/32UC,Enforcement Team Leader,Telephones,08/01/2015,IJ00039518,13.50,VODAFONE CORPORATE LIMITED, 
East Lindsey District Council,http://statistics.data.gov.uk/id/local-authority/32UC,Enforcement Team Leader,Telephones,08/01/2015,IJ00039518,6.75,VODAFONE CORPORATE LIMITED, 
East Lindsey District Council,http://statistics.data.gov.uk/id/local-authority/32UC,Enforcement Team Leader,Telephones,08/01/2015,IJ00039518,13.50,VODAFONE CORPORATE LIMITED, 
East Lindsey District Council,http://statistics.data.gov.uk/id/local-authority/32UC,Enforcement Team Leader,Telephones,08/01/2015,IJ00039518,13.50,VODAFONE CORPORATE LIMITED, 
East Lindsey District Council,http://statistics.data.gov.uk/id/local-authority/32UC,Enforcement Team Leader,Telephones,08/01/2015,IJ00039518,6.75,VODAFONE CORPORATE LIMITED, 
East Lindsey District Council,http://statistics.data.gov.uk/id/local-authority/32UC,Enforcement Team Leader,Telephones,08/01/2015,IJ00039518,6.75,VODAFONE CORPORATE LIMITED, 
East Lindsey District Council,http://statistics.data.gov.uk/id/local-authority/32UC,Enforcement Team Leader,Telephones,08/01/2015,IJ00039518,6.75,VODAFONE CORPORATE LIMITED, 
East Lindsey District Council,http://statistics.data.gov.uk/id/local-authority/32UC,Enforcement Team Leader,Telephones,08/01/2015,IJ00039518,6.75,VODAFONE CORPORATE LIMITED, 
East Lindsey District Council,http://statistics.data.gov.uk/id/local-authority/32UC,Enforcement Team Leader,Telephones,08/01/2015,IJ00039518,6.75,VODAFONE CORPORATE LIMITED, 
East Lindsey District Council,http://statistics.data.gov.uk/id/local-authority/32UC,Enforcement Team Leader,Telephones,08/01/2015,IJ00039518,6.75,VODAFONE CORPORATE LIMITED, 
East Lindsey District Council,http://statistics.data.gov.uk/id/local-authority/32UC,Enforcement Team Leader,Telephones,08/01/2015,IJ00039518,6.75,VODAFONE CORPORATE LIMITED, 
East Lindsey District Council,http://statistics.data.gov.uk/id/local-authority/32UC,Enforcement Team Leader,Telephones,08/01/2015,IJ00039518,13.50,VODAFONE CORPORATE LIMITED, 
East Lindsey District Council,http://statistics.data.gov.uk/id/local-authority/32UC,Enforcement Team Leader,Telephones,08/01/2015,IJ00039518,6.75,VODAFONE CORPORATE LIMITED, 
East Lindsey District Council,http://statistics.data.gov.uk/id/local-authority/32UC,Enforcement Team Leader,Telephones,08/01/2015,IJ00039518,6.75,VODAFONE CORPORATE LIMITED, 
East Lindsey District Council,http://statistics.data.gov.uk/id/local-authority/32UC,Enforcement Team Leader,Telephones,08/01/2015,IJ00039518,6.75,VODAFONE CORPORATE LIMITED, 
East Lindsey District Council,http://statistics.data.gov.uk/id/local-authority/32UC,Enforcement Team Leader,Telephones,08/01/2015,IJ00039518,6.75,VODAFONE CORPORATE LIMITED, 
East Lindsey District Council,http://statistics.data.gov.uk/id/local-authority/32UC,Enforcement Team Leader,Telephones,08/01/2015,IJ00039518,13.50,VODAFONE CORPORATE LIMITED, 
East Lindsey District Council,http://statistics.data.gov.uk/id/local-authority/32UC,Enforcement Team Leader,Telephones,08/01/2015,IJ00039518,6.75,VODAFONE CORPORATE LIMITED, 
East Lindsey District Council,http://statistics.data.gov.uk/id/local-authority/32UC,Enforcement Team Leader,Telephones,08/01/2015,IJ00039518,6.75,VODAFONE CORPORATE LIMITED, 
East Lindsey District Council,http://statistics.data.gov.uk/id/local-authority/32UC,Enforcement Team Leader,Telephones,08/01/2015,IJ00039518,6.75,VODAFONE CORPORATE LIMITED, 
East Lindsey District Council,http://statistics.data.gov.uk/id/local-authority/32UC,Enforcement Team Leader,Telephones,08/01/2015,IJ00039518,6.75,VODAFONE CORPORATE LIMITED, 
East Lindsey District Council,http://statistics.data.gov.uk/id/local-authority/32UC,Hsg Advice & Homelessness TL,Telephones,08/01/2015,IJ00039518,310.61,VODAFONE CORPORATE LIMITED, 
East Lindsey District Council,http://statistics.data.gov.uk/id/local-authority/32UC,Environment Team Leader,Telephones,08/01/2015,IJ00039518,176.79,VODAFONE CORPORATE LIMITED, 
East Lindsey District Council,http://statistics.data.gov.uk/id/local-authority/32UC,Cultural & Related Services,Telephones,08/01/2015,IJ00039518,20.77,VODAFONE CORPORATE LIMITED, 
East Lindsey District Council,http://statistics.data.gov.uk/id/local-authority/32UC,Hsg Advice & Homelessness TL,Rent and Lease Payments,08/01/2015,IJ00039666,2580.57,LONGHURST HOMES, 
East Lindsey District Council,http://statistics.data.gov.uk/id/local-authority/32UC,Corporate Accounting,Professional & Contractors Fees,08/01/2015,IJ00039540,6419.55,THE RISK FACTOR LTD, 
East Lindsey District Council,http://statistics.data.gov.uk/id/local-authority/32UC,Information Technology,Computer Hardware Purchase,08/01/2015,IJ00039612,2684.35,DELL COMPUTER CORPORATION LTD, 
East Lindsey District Council,http://statistics.data.gov.uk/id/local-authority/32UC,Neighbourhood Services,Buildings Maintenance - Responsive,08/01/2015,IJ00039647,578.22,SEYMOUR & CASTLE LTD, 
East Lindsey District Council,http://statistics.data.gov.uk/id/local-authority/32UC,TL Property,Buildings Maintenance - Responsive,08/01/2015,IJ00039623,888.71,SEYMOUR & CASTLE LTD, 
East Lindsey District Council,http://statistics.data.gov.uk/id/local-authority/32UC,Leisure Operations,Buildings Maintenance - Programmed,08/01/2015,IJ00039630,1081.13,MARK ELDIN JOINERY, 
East Lindsey District Council,http://statistics.data.gov.uk/id/local-authority/32UC,"Performance, Governance & Commissioning",Grants and Contributions to Outside Bodies- No Service Recei,08/01/2015,IJ00039668,3733.00,BUCKNALL VILLAGE HALL, 
East Lindsey District Council,http://statistics.data.gov.uk/id/local-authority/32UC,Waste Services Manager,Electricity,08/01/2015,IJ00039565,56.53,SOUTHERN ELECTRIC PLC, 
East Lindsey District Council,http://statistics.data.gov.uk/id/local-authority/32UC,Waste Services Manager,Electricity,08/01/2015,IJ00039565,31.07,SOUTHERN ELECTRIC PLC, 
East Lindsey District Council,http://statistics.data.gov.uk/id/local-authority/32UC,Neighbourhood Services,Electricity,08/01/2015,IJ00039565,139.71,SOUTHERN ELECTRIC PLC, 
East Lindsey District Council,http://statistics.data.gov.uk/id/local-authority/32UC,TL Property,Electricity,08/01/2015,IJ00039565,34.70,SOUTHERN ELECTRIC PLC, 
East Lindsey District Council,http://statistics.data.gov.uk/id/local-authority/32UC,TL Property,Electricity,08/01/2015,IJ00039565,416.67,SOUTHERN ELECTRIC PLC, 
East Lindsey District Council,http://statistics.data.gov.uk/id/local-authority/32UC,Economic & Tourism,Electricity,08/01/2015,IJ00039565,860.99,SOUTHERN ELECTRIC PLC, 
East Lindsey District Council,http://statistics.data.gov.uk/id/local-authority/32UC,Neighbourhood Services,Electricity,08/01/2015,IJ00039565,166.23,SOUTHERN ELECTRIC PLC, 
East Lindsey District Council,http://statistics.data.gov.uk/id/local-authority/32UC,Neighbourhood Services,Electricity,08/01/2015,IJ00039565,115.13,SOUTHERN ELECTRIC PLC, 
East Lindsey District Council,http://statistics.data.gov.uk/id/local-authority/32UC,Leisure Operations,Electricity,08/01/2015,IJ00039565,102.50,SOUTHERN ELECTRIC PLC, 
East Lindsey District Council,http://statistics.data.gov.uk/id/local-authority/32UC,Leisure Operations,Electricity,08/01/2015,IJ00039565,6268.83,SOUTHERN ELECTRIC PLC, 
East Lindsey District Council,http://statistics.data.gov.uk/id/local-authority/32UC,Theatre Manager,Electricity,08/01/2015,IJ00039571,1812.65,SOUTHERN ELECTRIC PLC, 
East Lindsey District Council,http://statistics.data.gov.uk/id/local-authority/32UC,Environment Team Leader,Electricity,08/01/2015,IJ00039571,28.11,SOUTHERN ELECTRIC PLC, 
East Lindsey District Council,http://statistics.data.gov.uk/id/local-authority/32UC,Economic & Tourism,Electricity,08/01/2015,IJ00039571,2922.12,SOUTHERN ELECTRIC PLC, 
East Lindsey District Council,http://statistics.data.gov.uk/id/local-authority/32UC,Economic & Tourism,Electricity,08/01/2015,IJ00039571,395.05,SOUTHERN ELECTRIC PLC, 
East Lindsey District Council,http://statistics.data.gov.uk/id/local-authority/32UC,Neighbourhood Services,Electricity,08/01/2015,IJ00039571,250.14,SOUTHERN ELECTRIC PLC, 
East Lindsey District Council,http://statistics.data.gov.uk/id/local-authority/32UC,Enforcement Team Leader,Electricity,08/01/2015,IJ00039571,107.20,SOUTHERN ELECTRIC PLC, 
East Lindsey District Council,http://statistics.data.gov.uk/id/local-authority/32UC,TL Property,Electricity,08/01/2015,IJ00039571,4771.56,SOUTHERN ELECTRIC PLC, 
East Lindsey District Council,http://statistics.data.gov.uk/id/local-authority/32UC,Neighbourhood Services,Electricity,08/01/2015,IJ00039571,145.57,SOUTHERN ELECTRIC PLC, 
East Lindsey District Council,http://statistics.data.gov.uk/id/local-authority/32UC,TL Property,Electricity,08/01/2015,IJ00039571,420.02,SOUTHERN ELECTRIC PLC, 
East Lindsey District Council,http://statistics.data.gov.uk/id/local-authority/32UC,TL Property,Electricity,08/01/2015,IJ00039571,403.43,SOUTHERN ELECTRIC PLC, 
East Lindsey District Council,http://statistics.data.gov.uk/id/local-authority/32UC,Leisure Operations,Electricity,08/01/2015,IJ00039626,7940.63,SOUTHERN ELECTRIC PLC, 
East Lindsey District Council,http://statistics.data.gov.uk/id/local-authority/32UC,Leisure Operations,Electricity,08/01/2015,IJ00039626,643.60,SOUTHERN ELECTRIC PLC, 
East Lindsey District Council,http://statistics.data.gov.uk/id/local-authority/32UC,Leisure Operations,Electricity,08/01/2015,IJ00039626,1012.43,SOUTHERN ELECTRIC PLC, 
East Lindsey District Council,http://statistics.data.gov.uk/id/local-authority/32UC,Enforcement Team Leader,Payments to Bodies in Respect of Income Collected,08/01/2015,IJ00039724,6614.23,TESCOS STORES LTD, 
East Lindsey District Council,http://statistics.data.gov.uk/id/local-authority/32UC,Leisure Operations,Other Miscellaneous Expenses,08/01/2015,IJ00039534,514.25,PERFORMING RIGHT SOCIETY LTD, 
East Lindsey District Council,http://statistics.data.gov.uk/id/local-authority/32UC,Leisure Operations,Furniture and Equipment,08/01/2015,IJ00039554,331.14,ESPO, 
East Lindsey District Council,http://statistics.data.gov.uk/id/local-authority/32UC,Leisure Operations,Cleaning Contract,08/01/2015,IJ00039554,89.88,ESPO, 
East Lindsey District Council,http://statistics.data.gov.uk/id/local-authority/32UC,Leisure Operations,Furniture and Equipment,08/01/2015,IJ00039554,13.56,ESPO, 
East Lindsey District Council,http://statistics.data.gov.uk/id/local-authority/32UC,Leisure Operations,Furniture and Equipment,08/01/2015,IJ00039554,39.54,ESPO, 
East Lindsey District Council,http://statistics.data.gov.uk/id/local-authority/32UC,Leisure Operations,Cleaning Contract,08/01/2015,IJ00039554,293.13,ESPO, 
East Lindsey District Council,http://statistics.data.gov.uk/id/local-authority/32UC,Leisure Operations,Cleaning Contract,08/01/2015,IJ00039554,88.36,ESPO, 
East Lindsey District Council,http://statistics.data.gov.uk/id/local-authority/32UC,Waste Services Manager,Commercial Vehicle Lease,08/01/2015,IJ00039596,529.94,TJS, 
East Lindsey District Council,http://statistics.data.gov.uk/id/local-authority/32UC,Corporate Management,Subscriptions to Organisations and Other Bodies,08/01/2015,IJ00039509,650.00,CHRISTOPHER DONKIN, 
East Lindsey District Council,http://statistics.data.gov.uk/id/local-authority/32UC,Corporate Management,Subscriptions to Organisations and Other Bodies,08/01/2015,IJ00039654,600.00,CHRISTOPHER DONKIN, 
East Lindsey District Council,http://statistics.data.gov.uk/id/local-authority/32UC,Leisure Operations,Other Miscellaneous Expenses,08/01/2015,IJ00039510,702.27,DEE BEE, 
East Lindsey District Council,http://statistics.data.gov.uk/id/local-authority/32UC,Leisure Operations,Purchase Of Goods For Resale,08/01/2015,IJ00039510,82.11,DEE BEE, 
East Lindsey District Council,http://statistics.data.gov.uk/id/local-authority/32UC,Communications Manager,Professional & Contractors Fees,08/01/2015,IJ00039656,2801.00,SMSR, 
East Lindsey District Council,http://statistics.data.gov.uk/id/local-authority/32UC,Leisure Operations,Furniture and Equipment,08/01/2015,IJ00039544,1680.00,VISION PLUS, 
East Lindsey District Council,http://statistics.data.gov.uk/id/local-authority/32UC,Leisure Operations,Telephones,08/01/2015,IJ00039585,38.58,MULTIDATA (EUROPE), 
East Lindsey District Council,http://statistics.data.gov.uk/id/local-authority/32UC,Leisure Operations,Internet Broadband Payments,08/01/2015,IJ00039585,59.25,MULTIDATA (EUROPE), 
East Lindsey District Council,http://statistics.data.gov.uk/id/local-authority/32UC,Leisure Operations,Internet Broadband Payments,08/01/2015,IJ00039585,75.00,MULTIDATA (EUROPE), 
East Lindsey District Council,http://statistics.data.gov.uk/id/local-authority/32UC,Leisure Operations,Internet Broadband Payments,08/01/2015,IJ00039585,120.00,MULTIDATA (EUROPE), 
East Lindsey District Council,http://statistics.data.gov.uk/id/local-authority/32UC,Theatre Manager,Internet Broadband Payments,08/01/2015,IJ00039585,75.00,MULTIDATA (EUROPE), 
East Lindsey District Council,http://statistics.data.gov.uk/id/local-authority/32UC,Leisure Operations,Internet Broadband Payments,08/01/2015,IJ00039585,75.00,MULTIDATA (EUROPE), 
East Lindsey District Council,http://statistics.data.gov.uk/id/local-authority/32UC,Leisure Operations,Internet Broadband Payments,08/01/2015,IJ00039585,30.00,MULTIDATA (EUROPE), 
East Lindsey District Council,http://statistics.data.gov.uk/id/local-authority/32UC,Leisure Operations,Internet Broadband Payments,08/01/2015,IJ00039585,210.00,MULTIDATA (EUROPE), 
East Lindsey District Council,http://statistics.data.gov.uk/id/local-authority/32UC,Leisure Operations,Internet Broadband Payments,08/01/2015,IJ00039585,150.00,MULTIDATA (EUROPE), 
East Lindsey District Council,http://statistics.data.gov.uk/id/local-authority/32UC,Leisure Operations,Internet Broadband Payments,08/01/2015,IJ00039585,75.00,MULTIDATA (EUROPE), 
East Lindsey District Council,http://statistics.data.gov.uk/id/local-authority/32UC,Hsg Private Sector TL,Grants and Contributions to Outside Bodies- No Service Recei,08/01/2015,IJ00039736,5189.10,DENNISS & MARWOOD, 
East Lindsey District Council,http://statistics.data.gov.uk/id/local-authority/32UC,Leisure Operations,Furniture and Equipment,08/01/2015,IJ00039521,1015.00,HAYSTACK DRYERS, 
East Lindsey District Council,http://statistics.data.gov.uk/id/local-authority/32UC,Leisure Operations,Buildings Maintenance - Programmed,08/01/2015,IJ00039570,1500.00,H20 SERVICING LTD, 
East Lindsey District Council,http://statistics.data.gov.uk/id/local-authority/32UC,Neighbourhood Services,Agency Staff,08/01/2015,IJ00039485,646.05,THE WORKSHOP (WISBECH) LIMITED, 
East Lindsey District Council,http://statistics.data.gov.uk/id/local-authority/32UC,Neighbourhood Services,Agency Staff,08/01/2015,IJ00039636,730.13,THE WORKSHOP (WISBECH) LIMITED, 
East Lindsey District Council,http://statistics.data.gov.uk/id/local-authority/32UC,Customer Services Manager,Payments to Bodies in Respect of Income Collected,08/01/2015,IJ00039650,1216.78,NATIONAL EXPRESS CREDIT CONTROL DEPT, 
East Lindsey District Council,http://statistics.data.gov.uk/id/local-authority/32UC,Customer Services Manager,Payments to Bodies in Respect of Income Collected,08/01/2015,IJ00039650,1490.72,NATIONAL EXPRESS CREDIT CONTROL DEPT, 
East Lindsey District Council,http://statistics.data.gov.uk/id/local-authority/32UC,Customer Services Manager,Payments to Bodies in Respect of Income Collected,08/01/2015,IJ00039650,384.35,NATIONAL EXPRESS CREDIT CONTROL DEPT, 
East Lindsey District Council,http://statistics.data.gov.uk/id/local-authority/32UC,Customer Services Manager,Payments to Bodies in Respect of Income Collected,08/01/2015,IJ00039650,37.71,NATIONAL EXPRESS CREDIT CONTROL DEPT, 
East Lindsey District Council,http://statistics.data.gov.uk/id/local-authority/32UC,Economic & Tourism,Other Miscellaneous Expenses,08/01/2015,IJ00039727,1073.00,COMPASS POINT BUSINESS SERVICES, 
East Lindsey District Council,http://statistics.data.gov.uk/id/local-authority/32UC,Theatre Manager,Performers and Entertainers Fees,08/01/2015,IJ00039742,27276.86,JAMIE MARCUS PRODUCTIONS LTD, 
East Lindsey District Council,http://statistics.data.gov.uk/id/local-authority/32UC,Theatre Manager,Performers and Entertainers Fees,08/01/2015,IJ00039742,-2954.20,JAMIE MARCUS PRODUCTIONS LTD, 
East Lindsey District Council,http://statistics.data.gov.uk/id/local-authority/32UC,Economic & Tourism,Professional & Contractors Fees,08/01/2015,IJ00039640,12900.00,GREENBOROUGH MANAGEMENT LIMITED, 
East Lindsey District Council,http://statistics.data.gov.uk/id/local-authority/32UC,Environment Team Leader,Professional & Contractors Fees,08/01/2015,IJ00039701,525.79,J TOMLINSON LTD, 
East Lindsey District Council,http://statistics.data.gov.uk/id/local-authority/32UC,Hsg Private Sector TL,Other Miscellaneous Expenses,08/01/2015,IJ00039496,4880.00,SAFE & SOUND SECURITY SYSTEMS LINKS LTD, 
East Lindsey District Council,http://statistics.data.gov.uk/id/local-authority/32UC,Hsg Private Sector TL,Other Miscellaneous Expenses,08/01/2015,IJ00039495,2750.00,SAFE & SOUND SECURITY SYSTEMS LINKS LTD, 
East Lindsey District Council,http://statistics.data.gov.uk/id/local-authority/32UC,Neighbourhood Services,Water and Sewerage Charges,08/01/2015,IJ00039560,558.36,ANGLIAN WATER, 
East Lindsey District Council,http://statistics.data.gov.uk/id/local-authority/32UC,Neighbourhood Services,Water and Sewerage Charges,08/01/2015,IJ00039562,1495.50,ANGLIAN WATER, 
East Lindsey District Council,http://statistics.data.gov.uk/id/local-authority/32UC,TL Property,Water and Sewerage Charges,08/01/2015,IJ00039562,143.81,ANGLIAN WATER, 
East Lindsey District Council,http://statistics.data.gov.uk/id/local-authority/32UC,Leisure Operations,Water and Sewerage Charges,08/01/2015,IJ00039619,1154.59,ANGLIAN WATER, 
East Lindsey District Council,http://statistics.data.gov.uk/id/local-authority/32UC,Leisure Operations,Water and Sewerage Charges,08/01/2015,IJ00039622,838.54,ANGLIAN WATER, 
East Lindsey District Council,http://statistics.data.gov.uk/id/local-authority/32UC,Waste Services Manager,Materials and Consumables,08/01/2015,IJ00039550,7334.00,ESE LTD, 
East Lindsey District Council,http://statistics.data.gov.uk/id/local-authority/32UC,Corporate Accounting,Professional & Contractors Fees,08/01/2015,IJ00039500,739.78,KINGS ARMOURED SECURITY SERVICES LTD, 
East Lindsey District Council,http://statistics.data.gov.uk/id/local-authority/32UC,Waste Services Manager,Telephones,08/01/2015,IJ00039750,10.99,DAISY COMMUNICATIONS LTD, 
East Lindsey District Council,http://statistics.data.gov.uk/id/local-authority/32UC,Enforcement Team Leader,Other agencies,08/01/2015,IJ00039750,22.72,DAISY COMMUNICATIONS LTD, 
East Lindsey District Council,http://statistics.data.gov.uk/id/local-authority/32UC,Customer Services Manager,Telephones,08/01/2015,IJ00039750,41.91,DAISY COMMUNICATIONS LTD, 
East Lindsey District Council,http://statistics.data.gov.uk/id/local-authority/32UC,Theatre Manager,Telephones,08/01/2015,IJ00039750,54.95,DAISY COMMUNICATIONS LTD, 
East Lindsey District Council,http://statistics.data.gov.uk/id/local-authority/32UC,Hsg Private Sector TL,Telephones,08/01/2015,IJ00039750,11.00,DAISY COMMUNICATIONS LTD, 
East Lindsey District Council,http://statistics.data.gov.uk/id/local-authority/32UC,Enforcement Team Leader,Telephones,08/01/2015,IJ00039750,10.99,DAISY COMMUNICATIONS LTD, 
East Lindsey District Council,http://statistics.data.gov.uk/id/local-authority/32UC,Building Control,Telephones,08/01/2015,IJ00039750,49.80,DAISY COMMUNICATIONS LTD, 
East Lindsey District Council,http://statistics.data.gov.uk/id/local-authority/32UC,TL Property,Other Communication Costs,08/01/2015,IJ00039750,10.99,DAISY COMMUNICATIONS LTD, 
East Lindsey District Council,http://statistics.data.gov.uk/id/local-authority/32UC,Economic & Tourism,Grants and Contributions to Outside Bodies- No Service Recei,08/01/2015,IJ00039750,13.93,DAISY COMMUNICATIONS LTD, 
East Lindsey District Council,http://statistics.data.gov.uk/id/local-authority/32UC,Economic & Tourism,Telephones,08/01/2015,IJ00039750,27.45,DAISY COMMUNICATIONS LTD, 
East Lindsey District Council,http://statistics.data.gov.uk/id/local-authority/32UC,Corporate Management,Telephones,08/01/2015,IJ00039750,1790.94,DAISY COMMUNICATIONS LTD, 
East Lindsey District Council,http://statistics.data.gov.uk/id/local-authority/32UC,Information Technology,Telephones,08/01/2015,IJ00039750,83.93,DAISY COMMUNICATIONS LTD, 
East Lindsey District Council,http://statistics.data.gov.uk/id/local-authority/32UC,Information Technology,Telephones,08/01/2015,IJ00039750,21.98,DAISY COMMUNICATIONS LTD, 
East Lindsey District Council,http://statistics.data.gov.uk/id/local-authority/32UC,Leisure Operations,Telephones,08/01/2015,IJ00039750,153.54,DAISY COMMUNICATIONS LTD, 
East Lindsey District Council,http://statistics.data.gov.uk/id/local-authority/32UC,Leisure Operations,Telephones,08/01/2015,IJ00039750,61.38,DAISY COMMUNICATIONS LTD, 
East Lindsey District Council,http://statistics.data.gov.uk/id/local-authority/32UC,Economic & Tourism,Telephones,08/01/2015,IJ00039750,378.74,DAISY COMMUNICATIONS LTD, 
East Lindsey District Council,http://statistics.data.gov.uk/id/local-authority/32UC,Economic & Tourism,Telephones,08/01/2015,IJ00039750,306.57,DAISY COMMUNICATIONS LTD, 
East Lindsey District Council,http://statistics.data.gov.uk/id/local-authority/32UC,Leisure Operations,Telephones,08/01/2015,IJ00039750,36.31,DAISY COMMUNICATIONS LTD, 
East Lindsey District Council,http://statistics.data.gov.uk/id/local-authority/32UC,Leisure Operations,Telephones,08/01/2015,IJ00039750,21.98,DAISY COMMUNICATIONS LTD, 
East Lindsey District Council,http://statistics.data.gov.uk/id/local-authority/32UC,Leisure Operations,Telephones,08/01/2015,IJ00039750,55.15,DAISY COMMUNICATIONS LTD, 
East Lindsey District Council,http://statistics.data.gov.uk/id/local-authority/32UC,TL Property,Telephones,08/01/2015,IJ00039750,10.99,DAISY COMMUNICATIONS LTD, 
East Lindsey District Council,http://statistics.data.gov.uk/id/local-authority/32UC,TL Property,Telephones,08/01/2015,IJ00039750,10.99,DAISY COMMUNICATIONS LTD, 
East Lindsey District Council,http://statistics.data.gov.uk/id/local-authority/32UC,TL Property,Telephones,08/01/2015,IJ00039750,23.64,DAISY COMMUNICATIONS LTD, 
East Lindsey District Council,http://statistics.data.gov.uk/id/local-authority/32UC,TL Property,Telephones,08/01/2015,IJ00039750,10.99,DAISY COMMUNICATIONS LTD, 
East Lindsey District Council,http://statistics.data.gov.uk/id/local-authority/32UC,Leisure Operations,Telephones,08/01/2015,IJ00039750,22.02,DAISY COMMUNICATIONS LTD, 
East Lindsey District Council,http://statistics.data.gov.uk/id/local-authority/32UC,Leisure Operations,Telephones,08/01/2015,IJ00039750,37.52,DAISY COMMUNICATIONS LTD, 
East Lindsey District Council,http://statistics.data.gov.uk/id/local-authority/32UC,Neighbourhood Services,Telephones,08/01/2015,IJ00039750,10.99,DAISY COMMUNICATIONS LTD, 
East Lindsey District Council,http://statistics.data.gov.uk/id/local-authority/32UC,TL Property,Telephones,08/01/2015,IJ00039750,10.99,DAISY COMMUNICATIONS LTD, 
East Lindsey District Council,http://statistics.data.gov.uk/id/local-authority/32UC,TL Property,Telephones,08/01/2015,IJ00039750,32.98,DAISY COMMUNICATIONS LTD, 
East Lindsey District Council,http://statistics.data.gov.uk/id/local-authority/32UC,Theatre Manager,Telephones,08/01/2015,IJ00039750,192.94,DAISY COMMUNICATIONS LTD, 
East Lindsey District Council,http://statistics.data.gov.uk/id/local-authority/32UC,TL Property,Telephones,08/01/2015,IJ00039750,33.07,DAISY COMMUNICATIONS LTD, 
East Lindsey District Council,http://statistics.data.gov.uk/id/local-authority/32UC,Corporate Management,Telephones,08/01/2015,IJ00039750,10.99,DAISY COMMUNICATIONS LTD, 
East Lindsey District Council,http://statistics.data.gov.uk/id/local-authority/32UC,TL Property,Telephones,08/01/2015,IJ00039750,102.65,DAISY COMMUNICATIONS LTD, 
East Lindsey District Council,http://statistics.data.gov.uk/id/local-authority/32UC,Neighbourhood Services,Telephones,08/01/2015,IJ00039750,10.99,DAISY COMMUNICATIONS LTD, 
East Lindsey District Council,http://statistics.data.gov.uk/id/local-authority/32UC,Neighbourhood Services,Staff Training Expenses,08/01/2015,IJ00039602,716.00,EAST LINCS RURAL TRAINING, 
East Lindsey District Council,http://statistics.data.gov.uk/id/local-authority/32UC,Neighbourhood Services,Staff Training Expenses,08/01/2015,IJ00039603,716.00,EAST LINCS RURAL TRAINING, 
East Lindsey District Council,http://statistics.data.gov.uk/id/local-authority/32UC,Neighbourhood Services,Staff Training Expenses,08/01/2015,IJ00039604,1040.00,EAST LINCS RURAL TRAINING, 
East Lindsey District Council,http://statistics.data.gov.uk/id/local-authority/32UC,Neighbourhood Services,Staff Training Expenses,08/01/2015,IJ00039604,180.00,EAST LINCS RURAL TRAINING, 
East Lindsey District Council,http://statistics.data.gov.uk/id/local-authority/32UC,Cultural & Related Services,Public Courses and Workshops,08/01/2015,IJ00039707,586.08,THE GOLF HOTEL, 
East Lindsey District Council,http://statistics.data.gov.uk/id/local-authority/32UC,Hsg Private Sector TL,Grants and Contributions to Outside Bodies- No Service Recei,08/01/2015,IJ00039737,6592.05,ANDREW WRISDALE BUILDING CONTRACTOR, 
East Lindsey District Council,http://statistics.data.gov.uk/id/local-authority/32UC,Waste Services Manager,Staff Recruitment,08/01/2015,IJ00039741,679.00,LOCAL WORLD, 
East Lindsey District Council,http://statistics.data.gov.uk/id/local-authority/32UC,Enforcement Team Leader,Fuel & Oil,08/01/2015,IJ00039714,175.53,AllStar Business Solutions Ltd, 
East Lindsey District Council,http://statistics.data.gov.uk/id/local-authority/32UC,Neighbourhood Services,Fuel & Oil,08/01/2015,IJ00039714,540.92,AllStar Business Solutions Ltd, 
East Lindsey District Council,http://statistics.data.gov.uk/id/local-authority/32UC,Neighbourhood Services,Fuel & Oil,08/01/2015,IJ00039714,892.52,AllStar Business Solutions Ltd, 
East Lindsey District Council,http://statistics.data.gov.uk/id/local-authority/32UC,Hsg Advice & Homelessness TL,Fuel & Oil,08/01/2015,IJ00039714,25.03,AllStar Business Solutions Ltd, 
East Lindsey District Council,http://statistics.data.gov.uk/id/local-authority/32UC,Neighbourhood Services,Fuel & Oil,08/01/2015,IJ00039714,861.32,AllStar Business Solutions Ltd, 
East Lindsey District Council,http://statistics.data.gov.uk/id/local-authority/32UC,Neighbourhood Services,Commercial Vehicle Lease,08/01/2015,IJ00039681,12442.00,Kier FPS Limited, 
East Lindsey District Council,http://statistics.data.gov.uk/id/local-authority/32UC,Neighbourhood Services,Leased Car Allowances,08/01/2015,IJ00039681,15302.00,Kier FPS Limited, 
East Lindsey District Council,http://statistics.data.gov.uk/id/local-authority/32UC,Information Technology,Telephones,08/01/2015,IJ00037823,2970.92,Vodafone Limited, 
East Lindsey District Council,http://statistics.data.gov.uk/id/local-authority/32UC,Information Technology,Telephones,08/01/2015,IJ00039729,1076.66,Vodafone Limited, 
East Lindsey District Council,http://statistics.data.gov.uk/id/local-authority/32UC,Building Control,Telephones,08/01/2015,IJ00039730,23.49,Vodafone Limited, 
East Lindsey District Council,http://statistics.data.gov.uk/id/local-authority/32UC,Information Technology,Telephones,08/01/2015,IJ00039730,23.49,Vodafone Limited, 
East Lindsey District Council,http://statistics.data.gov.uk/id/local-authority/32UC,Information Technology,Telephones,08/01/2015,IJ00039730,1518.25,Vodafone Limited, 
East Lindsey District Council,http://statistics.data.gov.uk/id/local-authority/32UC,Cultural & Related Services,Public Courses and Workshops,08/01/2015,IJ00039734,1228.32,Tony Connell, 
East Lindsey District Council,http://statistics.data.gov.uk/id/local-authority/32UC,Economic & Tourism,Other Miscellaneous Expenses,08/01/2015,IJ00039631,815.38,Exterion Media Limited, 
East Lindsey District Council,http://statistics.data.gov.uk/id/local-authority/32UC,Waste Services Manager,Agency Staff,08/01/2015,IJ00039512,1150.37,BIBBY FACTORS YORKSHIRE LIMITED, 
East Lindsey District Council,http://statistics.data.gov.uk/id/local-authority/32UC,Waste Services Manager,Agency Staff,08/01/2015,IJ00039704,941.02,BIBBY FACTORS YORKSHIRE LIMITED, 
East Lindsey District Council,http://statistics.data.gov.uk/id/local-authority/32UC,Economic & Tourism,Other Miscellaneous Expenses,08/01/2015,IJ00039718,1930.50,Michael A Singh, 
East Lindsey District Council,http://statistics.data.gov.uk/id/local-authority/32UC,Waste Services Manager,Agency Staff,08/01/2015,IJ00039675,544.00,LYNX MOTORHOMES LTD, 
East Lindsey District Council,http://statistics.data.gov.uk/id/local-authority/32UC,Hsg Advice & Homelessness TL,Staff Training Expenses,08/01/2015,IJ00039740,3591.00,Independent Living Partnership, 
East Lindsey District Council,http://statistics.data.gov.uk/id/local-authority/32UC,"Performance, Governance & Commissioning",Grants and Contributions to Outside Bodies- No Service Recei,08/01/2015,IJ00039493,2203.00,St Andrews PCC, 
East Lindsey District Council,http://statistics.data.gov.uk/id/local-authority/32UC,"Performance, Governance & Commissioning",Conference and Seminars,08/01/2015,IJ00039502,500.00,Nottingham City Council, 
East Lindsey District Council,http://statistics.data.gov.uk/id/local-authority/32UC,Leisure Operations,Staff Training Expenses,08/01/2015,IJ00039549,924.90,Skills Active, 
East Lindsey District Council,http://statistics.data.gov.uk/id/local-authority/32UC,Theatre Manager,Professional & Contractors Fees,15/01/2015,IJ00039771,133.10,BIFFA WASTE SERVICES LTD, 
East Lindsey District Council,http://statistics.data.gov.uk/id/local-authority/32UC,Leisure Operations,Professional & Contractors Fees,15/01/2015,IJ00039771,133.10,BIFFA WASTE SERVICES LTD, 
East Lindsey District Council,http://statistics.data.gov.uk/id/local-authority/32UC,Economic & Tourism,Professional & Contractors Fees,15/01/2015,IJ00039771,66.55,BIFFA WASTE SERVICES LTD, 
East Lindsey District Council,http://statistics.data.gov.uk/id/local-authority/32UC,Economic & Tourism,Professional & Contractors Fees,15/01/2015,IJ00039771,66.55,BIFFA WASTE SERVICES LTD, 
East Lindsey District Council,http://statistics.data.gov.uk/id/local-authority/32UC,TL Property,Professional & Contractors Fees,15/01/2015,IJ00039771,66.55,BIFFA WASTE SERVICES LTD, 
East Lindsey District Council,http://statistics.data.gov.uk/id/local-authority/32UC,Leisure Operations,Professional & Contractors Fees,15/01/2015,IJ00039771,66.55,BIFFA WASTE SERVICES LTD, 
East Lindsey District Council,http://statistics.data.gov.uk/id/local-authority/32UC,Leisure Operations,Professional & Contractors Fees,15/01/2015,IJ00039771,66.55,BIFFA WASTE SERVICES LTD, 
East Lindsey District Council,http://statistics.data.gov.uk/id/local-authority/32UC,TL Property,Professional & Contractors Fees,15/01/2015,IJ00039771,66.55,BIFFA WASTE SERVICES LTD, 
East Lindsey District Council,http://statistics.data.gov.uk/id/local-authority/32UC,TL Property,Professional & Contractors Fees,15/01/2015,IJ00039771,263.60,BIFFA WASTE SERVICES LTD, 
East Lindsey District Council,http://statistics.data.gov.uk/id/local-authority/32UC,Leisure Operations,Professional & Contractors Fees,15/01/2015,IJ00039771,332.75,BIFFA WASTE SERVICES LTD, 
East Lindsey District Council,http://statistics.data.gov.uk/id/local-authority/32UC,Information Technology,Telephones,15/01/2015,IJ00039796,2587.13,BT PLC, 
East Lindsey District Council,http://statistics.data.gov.uk/id/local-authority/32UC,Neighbourhood Services,Professional & Contractors Fees,15/01/2015,IJ00039834,640.00,SID DENNIS & SONS LTD, 
East Lindsey District Council,http://statistics.data.gov.uk/id/local-authority/32UC,Leisure Operations,Buildings Maintenance - Programmed,15/01/2015,IJ00039873,1008.45,ABACUS LIGHTING LIMITED, 
East Lindsey District Council,http://statistics.data.gov.uk/id/local-authority/32UC,Theatre Manager,Materials and Consumables,15/01/2015,IJ00039923,307.50,PHS GROUP PLC, 
East Lindsey District Council,http://statistics.data.gov.uk/id/local-authority/32UC,TL Property,Materials and Consumables,15/01/2015,IJ00039923,73.52,PHS GROUP PLC, 
East Lindsey District Council,http://statistics.data.gov.uk/id/local-authority/32UC,Leisure Operations,Materials and Consumables,15/01/2015,IJ00039923,8.00,PHS GROUP PLC, 
East Lindsey District Council,http://statistics.data.gov.uk/id/local-authority/32UC,Leisure Operations,Materials and Consumables,15/01/2015,IJ00039923,324.48,PHS GROUP PLC, 
East Lindsey District Council,http://statistics.data.gov.uk/id/local-authority/32UC,Leisure Operations,Materials and Consumables,15/01/2015,IJ00039923,269.32,PHS GROUP PLC, 
East Lindsey District Council,http://statistics.data.gov.uk/id/local-authority/32UC,TL Property,Materials and Consumables,15/01/2015,IJ00039923,60.65,PHS GROUP PLC, 
East Lindsey District Council,http://statistics.data.gov.uk/id/local-authority/32UC,Economic & Tourism,Materials and Consumables,15/01/2015,IJ00039923,80.95,PHS GROUP PLC, 
East Lindsey District Council,http://statistics.data.gov.uk/id/local-authority/32UC,Economic & Tourism,Materials and Consumables,15/01/2015,IJ00039923,300.62,PHS GROUP PLC, 
East Lindsey District Council,http://statistics.data.gov.uk/id/local-authority/32UC,Leisure Operations,Cleaning Contract,15/01/2015,IJ00039923,273.51,PHS GROUP PLC, 
East Lindsey District Council,http://statistics.data.gov.uk/id/local-authority/32UC,Leisure Operations,Cleaning Contract,15/01/2015,IJ00039923,2168.46,PHS GROUP PLC, 
East Lindsey District Council,http://statistics.data.gov.uk/id/local-authority/32UC,Theatre Manager,Materials and Consumables,15/01/2015,IJ00039923,44.72,PHS GROUP PLC, 
East Lindsey District Council,http://statistics.data.gov.uk/id/local-authority/32UC,Enforcement Team Leader,Lincolnshire Legal Services,15/01/2015,IJ00039772,1291.66,LOCAL GOVERNMENT ASSOCIATION, 
East Lindsey District Council,http://statistics.data.gov.uk/id/local-authority/32UC,Hsg Advice & Homelessness TL,Grants and Contributions to Outside Bodies- No Service Recei,15/01/2015,IJ00039803,12000.00,LONGHURST HOMES, 
East Lindsey District Council,http://statistics.data.gov.uk/id/local-authority/32UC,Waste Services Manager,Recycling Credits,15/01/2015,IJ00039831,1026.06,GLASS RECYCLING (UK) LTD, 
East Lindsey District Council,http://statistics.data.gov.uk/id/local-authority/32UC,Waste Services Manager,Recycling Credits,15/01/2015,IJ00039830,1062.22,GLASS RECYCLING (UK) LTD, 
East Lindsey District Council,http://statistics.data.gov.uk/id/local-authority/32UC,Enforcement Team Leader,Professional & Contractors Fees,15/01/2015,IJ00039773,2902.00,LINCOLNSHIRE COUNTY COUNCIL, 
East Lindsey District Council,http://statistics.data.gov.uk/id/local-authority/32UC,Corporate Management,Lincolnshire Legal Services,15/01/2015,IJ00039763,16990.89,LINCOLNSHIRE COUNTY COUNCIL, 
East Lindsey District Council,http://statistics.data.gov.uk/id/local-authority/32UC,Corporate Management,Lincolnshire Legal Services,15/01/2015,IJ00039763,1375.00,LINCOLNSHIRE COUNTY COUNCIL, 
East Lindsey District Council,http://statistics.data.gov.uk/id/local-authority/32UC,Corporate Management,Lincolnshire Legal Services,15/01/2015,IJ00039763,51.00,LINCOLNSHIRE COUNTY COUNCIL, 
East Lindsey District Council,http://statistics.data.gov.uk/id/local-authority/32UC,Neighbourhood Services,Fuel & Oil,15/01/2015,IJ00039785,1340.00,WATSON PETROLEUM LTD, 
East Lindsey District Council,http://statistics.data.gov.uk/id/local-authority/32UC,Leisure Operations,Advertising - Events,15/01/2015,IJ00039784,1935.00,GLADSTONE MRM LIMITED, 
East Lindsey District Council,http://statistics.data.gov.uk/id/local-authority/32UC,Neighbourhood Services,Buildings Maintenance - Responsive,15/01/2015,IJ00039876,600.00,MARK ELDIN JOINERY, 
East Lindsey District Council,http://statistics.data.gov.uk/id/local-authority/32UC,Cultural & Related Services,Rent and Lease Payments,15/01/2015,IJ00039825,264.50,INGOLDMELLS PARISH COUNCIL, 
East Lindsey District Council,http://statistics.data.gov.uk/id/local-authority/32UC,Neighbourhood Services,Water and Sewerage Charges,15/01/2015,IJ00039825,552.69,INGOLDMELLS PARISH COUNCIL, 
East Lindsey District Council,http://statistics.data.gov.uk/id/local-authority/32UC,Neighbourhood Services,Electricity,15/01/2015,IJ00039825,269.06,INGOLDMELLS PARISH COUNCIL, 
East Lindsey District Council,http://statistics.data.gov.uk/id/local-authority/32UC,Economic & Tourism,Agency Staff,15/01/2015,IJ00039767,58.08,WORKFORCE UNLIMITED, 
East Lindsey District Council,http://statistics.data.gov.uk/id/local-authority/32UC,Economic & Tourism,Agency Staff,15/01/2015,IJ00039767,779.84,WORKFORCE UNLIMITED, 
East Lindsey District Council,http://statistics.data.gov.uk/id/local-authority/32UC,Economic & Tourism,Agency Staff,15/01/2015,IJ00039768,56.62,WORKFORCE UNLIMITED, 
East Lindsey District Council,http://statistics.data.gov.uk/id/local-authority/32UC,Economic & Tourism,Agency Staff,15/01/2015,IJ00039768,674.51,WORKFORCE UNLIMITED, 
East Lindsey District Council,http://statistics.data.gov.uk/id/local-authority/32UC,Leisure Operations,Buildings Maintenance - Programmed,15/01/2015,IJ00039897,4176.61,DEVLIN DECORATORS LTD, 
East Lindsey District Council,http://statistics.data.gov.uk/id/local-authority/32UC,Leisure Operations,Buildings Maintenance - Programmed,15/01/2015,IJ00039903,1859.72,DEVLIN DECORATORS LTD, 
East Lindsey District Council,http://statistics.data.gov.uk/id/local-authority/32UC,Leisure Operations,Buildings Maintenance - Programmed,15/01/2015,IJ00039905,1734.39,DEVLIN DECORATORS LTD, 
East Lindsey District Council,http://statistics.data.gov.uk/id/local-authority/32UC,TL Property,Buildings Maintenance - Programmed,15/01/2015,IJ00039875,969.96,AVERY WEIGH TRONIX, 
East Lindsey District Council,http://statistics.data.gov.uk/id/local-authority/32UC,Leisure Operations,Buildings Maintenance - Programmed,15/01/2015,IJ00039901,543.80,VES ANDOVER LTD, 
East Lindsey District Council,http://statistics.data.gov.uk/id/local-authority/32UC,BALANCE  SHEET,VAT Customs and Excise,15/01/2015,IJ00039757,1206.34,JACOBS, 
East Lindsey District Council,http://statistics.data.gov.uk/id/local-authority/32UC,BALANCE  SHEET,Payroll Sacrifice Nursery Voucher,15/01/2015,IJ00039832,2742.00,SODEXHO, 
East Lindsey District Council,http://statistics.data.gov.uk/id/local-authority/32UC,Theatre Manager,Cleaning Contract,15/01/2015,IJ00039758,482.58,ESPO, 
East Lindsey District Council,http://statistics.data.gov.uk/id/local-authority/32UC,Neighbourhood Services,Materials and Consumables,15/01/2015,IJ00039758,47.76,ESPO, 
East Lindsey District Council,http://statistics.data.gov.uk/id/local-authority/32UC,Neighbourhood Services,Materials and Consumables,15/01/2015,IJ00039758,261.80,ESPO, 
East Lindsey District Council,http://statistics.data.gov.uk/id/local-authority/32UC,Leisure Operations,Furniture and Equipment,15/01/2015,IJ00039758,65.00,ESPO, 
East Lindsey District Council,http://statistics.data.gov.uk/id/local-authority/32UC,TL Property,Stationery,15/01/2015,IJ00039758,22.29,ESPO, 
East Lindsey District Council,http://statistics.data.gov.uk/id/local-authority/32UC,Leisure Operations,Stationery,15/01/2015,IJ00039758,35.60,ESPO, 
East Lindsey District Council,http://statistics.data.gov.uk/id/local-authority/32UC,Leisure Operations,Furniture and Equipment,15/01/2015,IJ00039758,38.10,ESPO, 
East Lindsey District Council,http://statistics.data.gov.uk/id/local-authority/32UC,Leisure Operations,Cleaning Contract,15/01/2015,IJ00039758,197.70,ESPO, 
East Lindsey District Council,http://statistics.data.gov.uk/id/local-authority/32UC,Hsg Advice & Homelessness TL,Furniture and Equipment,15/01/2015,IJ00039758,69.50,ESPO, 
East Lindsey District Council,http://statistics.data.gov.uk/id/local-authority/32UC,Leisure Operations,Buildings Maintenance - Programmed,15/01/2015,IJ00039878,804.92,ESG POOL VENTILATION LTD, 
East Lindsey District Council,http://statistics.data.gov.uk/id/local-authority/32UC,Theatre Manager,Performers and Entertainers Fees,15/01/2015,IJ00039922,2108.77,ROTARY CLUB OF SKEGNESS, 
East Lindsey District Council,http://statistics.data.gov.uk/id/local-authority/32UC,Neighbourhood Services,Professional & Contractors Fees,15/01/2015,IJ00039893,1200.00,VEOLIA ES (UK) LIMITED, 
East Lindsey District Council,http://statistics.data.gov.uk/id/local-authority/32UC,Neighbourhood Services,Grounds Maintenance Contract (External),15/01/2015,IJ00039895,11765.99,VEOLIA ES (UK) LIMITED, 
East Lindsey District Council,http://statistics.data.gov.uk/id/local-authority/32UC,Economic & Tourism,Buildings Maintenance - Responsive,15/01/2015,IJ00039906,940.45,JOHN MOORE SECURITY LTD, 
East Lindsey District Council,http://statistics.data.gov.uk/id/local-authority/32UC,Hsg Private Sector TL,Other Income,15/01/2015,IJ00039915,-321.19,ANDREW BLADES BUILDING SERVICES LTD, 
East Lindsey District Council,http://statistics.data.gov.uk/id/local-authority/32UC,Hsg Private Sector TL,Grants and Contributions to Outside Bodies- No Service Recei,15/01/2015,IJ00039915,3597.35,ANDREW BLADES BUILDING SERVICES LTD, 
East Lindsey District Council,http://statistics.data.gov.uk/id/local-authority/32UC,Development Control,Other Private Contractors,15/01/2015,IJ00039793,4114.80,LGS LIMITED, 
East Lindsey District Council,http://statistics.data.gov.uk/id/local-authority/32UC,Neighbourhood Services,Agency Staff,15/01/2015,IJ00039802,796.50,THE WORKSHOP (WISBECH) LIMITED, 
East Lindsey District Council,http://statistics.data.gov.uk/id/local-authority/32UC,Neighbourhood Services,Agency Staff,15/01/2015,IJ00039810,531.00,THE WORKSHOP (WISBECH) LIMITED, 
East Lindsey District Council,http://statistics.data.gov.uk/id/local-authority/32UC,Leisure Operations,Professional & Contractors Fees,15/01/2015,IJ00039780,955.00,REDACTED PERSONAL INFORMATION,REDACT
East Lindsey District Council,http://statistics.data.gov.uk/id/local-authority/32UC,Corporate Accounting,Compass Point Business Services,15/01/2015,IJ00039819,423015.25,COMPASS POINT BUSINESS SERVICES, 
East Lindsey District Council,http://statistics.data.gov.uk/id/local-authority/32UC,Leisure Operations,Professional & Contractors Fees,15/01/2015,IJ00039929,14000.00,COMPASS POINT BUSINESS SERVICES, 
East Lindsey District Council,http://statistics.data.gov.uk/id/local-authority/32UC,"Performance, Governance & Commissioning",Grants and Contributions to Outside Bodies- No Service Recei,15/01/2015,IJ00039889,800.00,GRAINTHORPE & CONISHOLME VILLAGE ASSOC, 
East Lindsey District Council,http://statistics.data.gov.uk/id/local-authority/32UC,"Performance, Governance & Commissioning",Grants and Contributions to Outside Bodies- No Service Recei,15/01/2015,IJ00039888,800.00,HOGSTHORPE PARISH COUNCIL, 
East Lindsey District Council,http://statistics.data.gov.uk/id/local-authority/32UC,Hsg Private Sector TL,Professional & Contractors Fees,15/01/2015,IJ00039786,9250.00,SAFE & SOUND SECURITY SYSTEMS LINKS LTD, 
East Lindsey District Council,http://statistics.data.gov.uk/id/local-authority/32UC,TL Property,Buildings Maintenance - Programmed,15/01/2015,IJ00039868,900.00,SAFE & SOUND SECURITY SYSTEMS LINKS LTD, 
East Lindsey District Council,http://statistics.data.gov.uk/id/local-authority/32UC,Economic & Tourism,Professional & Contractors Fees,15/01/2015,IJ00039815,900.00,SKILLSREACH, 
East Lindsey District Council,http://statistics.data.gov.uk/id/local-authority/32UC,Economic & Tourism,Cleaning Contract,15/01/2015,IJ00039769,528.65,EASY CLEAN MARSHCHAPEL LTD, 
East Lindsey District Council,http://statistics.data.gov.uk/id/local-authority/32UC,Economic & Tourism,Cleaning Contract,15/01/2015,IJ00039816,877.25,EASY CLEAN MARSHCHAPEL LTD, 
East Lindsey District Council,http://statistics.data.gov.uk/id/local-authority/32UC,"Performance, Governance & Commissioning",Grants and Contributions to Outside Bodies- No Service Recei,15/01/2015,IJ00039841,500.00,TUESDAY CLUB, 
East Lindsey District Council,http://statistics.data.gov.uk/id/local-authority/32UC,TL Property,Buildings Maintenance - Programmed,15/01/2015,IJ00039881,1150.00,CSH INTERIORS, 
East Lindsey District Council,http://statistics.data.gov.uk/id/local-authority/32UC,Leisure Operations,Buildings Maintenance - Programmed,15/01/2015,IJ00039883,1912.00,CSH INTERIORS, 
East Lindsey District Council,http://statistics.data.gov.uk/id/local-authority/32UC,Leisure Operations,Buildings Maintenance - Responsive,15/01/2015,IJ00039884,6768.23,LINCOLNSHIRE FLOORING CO (CONTRACTS) LTD, 
East Lindsey District Council,http://statistics.data.gov.uk/id/local-authority/32UC,Leisure Operations,Furniture and Equipment,15/01/2015,IJ00039542,1840.00,ASPECT SAFETY MIRRORS LTD, 
East Lindsey District Council,http://statistics.data.gov.uk/id/local-authority/32UC,Communications Manager,Other Miscellaneous Expenses,15/01/2015,IJ00039826,6789.45,LEAFLET DISTRIBUTION SERVICES LTD, 
East Lindsey District Council,http://statistics.data.gov.uk/id/local-authority/32UC,Hsg Private Sector TL,Other Income,15/01/2015,IJ00039916,-515.15,ANDREW WRISDALE BUILDING CONTRACTOR, 
East Lindsey District Council,http://statistics.data.gov.uk/id/local-authority/32UC,Hsg Private Sector TL,Grants and Contributions to Outside Bodies- No Service Recei,15/01/2015,IJ00039916,5769.70,ANDREW WRISDALE BUILDING CONTRACTOR, 
East Lindsey District Council,http://statistics.data.gov.uk/id/local-authority/32UC,Waste Services Manager,Fuel & Oil,15/01/2015,IJ00039930,25387.04,EMO OIL LIMITED, 
East Lindsey District Council,http://statistics.data.gov.uk/id/local-authority/32UC,Information Technology,Computer Software Licence Costs,15/01/2015,IJ00039835,1488.69,Artifax Software Limited, 
East Lindsey District Council,http://statistics.data.gov.uk/id/local-authority/32UC,Leisure Operations,Buildings Maintenance - Programmed,15/01/2015,IJ00039886,3668.35,CAPITAL FLOORS LTD, 
East Lindsey District Council,http://statistics.data.gov.uk/id/local-authority/32UC,BALANCE  SHEET,VAT Customs and Excise,15/01/2015,IJ00039822,575.74,Bristow and Sutor, 
East Lindsey District Council,http://statistics.data.gov.uk/id/local-authority/32UC,Revenues & Benefits,Other Income,15/01/2015,IJ00039822,76.15,Bristow and Sutor, 
East Lindsey District Council,http://statistics.data.gov.uk/id/local-authority/32UC,Economic & Tourism,Other Miscellaneous Expenses,15/01/2015,IJ00039766,770.00,Peter Thorpe Financial Consultant, 
East Lindsey District Council,http://statistics.data.gov.uk/id/local-authority/32UC,Leisure Operations,Buildings Maintenance - Programmed,15/01/2015,IJ00039894,1967.40,Dalesauna Ltd, 
East Lindsey District Council,http://statistics.data.gov.uk/id/local-authority/32UC,Waste Services Manager,Maintenance,15/01/2015,IJ00039812,14962.22,Kier FPS Limited, 
East Lindsey District Council,http://statistics.data.gov.uk/id/local-authority/32UC,Cultural & Related Services,Public Courses and Workshops,15/01/2015,IJ00039836,939.69,Tony Connell, 
East Lindsey District Council,http://statistics.data.gov.uk/id/local-authority/32UC,Communications Manager,Other Miscellaneous Expenses,15/01/2015,IJ00039919,4158.00,Polestar UK Print Limited, 
East Lindsey District Council,http://statistics.data.gov.uk/id/local-authority/32UC,Waste Services Manager,Staff Training Expenses,15/01/2015,IJ00039891,1057.50,REDACTED PERSONAL INFORMATION,REDACT
East Lindsey District Council,http://statistics.data.gov.uk/id/local-authority/32UC,Neighbourhood Services,Grounds Maintenance Contract (External),15/01/2015,IJ00039935,500.00,Sardeson Sculptures, 
East Lindsey District Council,http://statistics.data.gov.uk/id/local-authority/32UC,Economic & Tourism,Other Miscellaneous Expenses,15/01/2015,IJ00039890,815.38,Exterion Media Limited, 
East Lindsey District Council,http://statistics.data.gov.uk/id/local-authority/32UC,Hsg Advice & Homelessness TL,Furniture and Equipment,15/01/2015,IJ00039792,1129.63,Complete Care Shop, 
East Lindsey District Council,http://statistics.data.gov.uk/id/local-authority/32UC,Waste Services Manager,Agency Staff,15/01/2015,IJ00039932,501.08,BIBBY FACTORS YORKSHIRE LIMITED, 
East Lindsey District Council,http://statistics.data.gov.uk/id/local-authority/32UC,Corporate Accounting,Professional & Contractors Fees,15/01/2015,IJ00039933,79124.43,Nepro Limited, 
East Lindsey District Council,http://statistics.data.gov.uk/id/local-authority/32UC,Enforcement Team Leader,Other Miscellaneous Expenses,15/01/2015,IJ00039770,1299.36,Chattertons McKinnells, 
East Lindsey District Council,http://statistics.data.gov.uk/id/local-authority/32UC,Economic & Tourism,Grants and Contributions to Outside Bodies- No Service Recei,15/01/2015,IJ00039892,5347.44,KIRKS QUALITY FOODS, 
East Lindsey District Council,http://statistics.data.gov.uk/id/local-authority/32UC,Neighbourhood Services,Staff Training Expenses,15/01/2015,IJ00039811,1000.00,Riseholme College, 
East Lindsey District Council,http://statistics.data.gov.uk/id/local-authority/32UC,Capital WIP,"Purchase of Plant, Machinery & Equipment",15/01/2015,IJ00039885,700.00,Woldmarsh Producers Ltd, 
East Lindsey District Council,http://statistics.data.gov.uk/id/local-authority/32UC,Information Technology,Telephones,22/01/2015,IJ00040039,2786.13,BT PLC, 
East Lindsey District Council,http://statistics.data.gov.uk/id/local-authority/32UC,Hsg Private Sector TL,Grants and Contributions to Outside Bodies- No Service Recei,22/01/2015,IJ00040098,5374.77,COTTS BUILDERS AND CONTRACTORS, 
East Lindsey District Council,http://statistics.data.gov.uk/id/local-authority/32UC,Theatre Manager,Purchase Of Goods For Resale,22/01/2015,IJ00039951,518.73,SKEGNESS CREAM ICE CO LTD, 
East Lindsey District Council,http://statistics.data.gov.uk/id/local-authority/32UC,"Performance, Governance & Commissioning",Grants and Contributions to Outside Bodies- No Service Recei,22/01/2015,IJ00040006,600.00,ALVINGHAM VILLAGE HALL, 
East Lindsey District Council,http://statistics.data.gov.uk/id/local-authority/32UC,Hsg Advice & Homelessness TL,Professional & Contractors Fees,22/01/2015,IJ00040116,740.00,LINCOLNSHIRE COUNTY COUNCIL, 
East Lindsey District Council,http://statistics.data.gov.uk/id/local-authority/32UC,Corporate Accounting,Business Rates Tariff,22/01/2015,IJ00039997,471371.67,LINCOLNSHIRE COUNTY COUNCIL, 
East Lindsey District Council,http://statistics.data.gov.uk/id/local-authority/32UC,Neighbourhood Services,Fuel & Oil,22/01/2015,IJ00040103,1005.67,WATSON PETROLEUM LTD, 
East Lindsey District Council,http://statistics.data.gov.uk/id/local-authority/32UC,TL Property,Buildings Maintenance - Responsive,22/01/2015,IJ00040088,965.00,MARK ELDIN JOINERY, 
East Lindsey District Council,http://statistics.data.gov.uk/id/local-authority/32UC,Leisure Operations,Electricity,22/01/2015,IJ00040086,1976.42,SOUTHERN ELECTRIC PLC, 
East Lindsey District Council,http://statistics.data.gov.uk/id/local-authority/32UC,TL Property,Electricity,22/01/2015,IJ00040089,4315.25,SOUTHERN ELECTRIC PLC, 
East Lindsey District Council,http://statistics.data.gov.uk/id/local-authority/32UC,TL Property,Electricity,22/01/2015,IJ00040089,49.60,SOUTHERN ELECTRIC PLC, 
East Lindsey District Council,http://statistics.data.gov.uk/id/local-authority/32UC,Neighbourhood Services,Electricity,22/01/2015,IJ00040089,33.63,SOUTHERN ELECTRIC PLC, 
East Lindsey District Council,http://statistics.data.gov.uk/id/local-authority/32UC,Enforcement Team Leader,Electricity,22/01/2015,IJ00040089,4.22,SOUTHERN ELECTRIC PLC, 
East Lindsey District Council,http://statistics.data.gov.uk/id/local-authority/32UC,Enforcement Team Leader,Electricity,22/01/2015,IJ00040089,17.59,SOUTHERN ELECTRIC PLC, 
East Lindsey District Council,http://statistics.data.gov.uk/id/local-authority/32UC,Enforcement Team Leader,Electricity,22/01/2015,IJ00040089,17.59,SOUTHERN ELECTRIC PLC, 
East Lindsey District Council,http://statistics.data.gov.uk/id/local-authority/32UC,Enforcement Team Leader,Electricity,22/01/2015,IJ00040089,14.32,SOUTHERN ELECTRIC PLC, 
East Lindsey District Council,http://statistics.data.gov.uk/id/local-authority/32UC,Enforcement Team Leader,Electricity,22/01/2015,IJ00040089,20.47,SOUTHERN ELECTRIC PLC, 
East Lindsey District Council,http://statistics.data.gov.uk/id/local-authority/32UC,Enforcement Team Leader,Electricity,22/01/2015,IJ00040089,38.06,SOUTHERN ELECTRIC PLC, 
East Lindsey District Council,http://statistics.data.gov.uk/id/local-authority/32UC,Enforcement Team Leader,Electricity,22/01/2015,IJ00040089,46.14,SOUTHERN ELECTRIC PLC, 
East Lindsey District Council,http://statistics.data.gov.uk/id/local-authority/32UC,Enforcement Team Leader,Electricity,22/01/2015,IJ00040089,13.37,SOUTHERN ELECTRIC PLC, 
East Lindsey District Council,http://statistics.data.gov.uk/id/local-authority/32UC,Enforcement Team Leader,Electricity,22/01/2015,IJ00040089,32.72,SOUTHERN ELECTRIC PLC, 
East Lindsey District Council,http://statistics.data.gov.uk/id/local-authority/32UC,Neighbourhood Services,Electricity,22/01/2015,IJ00040089,4.66,SOUTHERN ELECTRIC PLC, 
East Lindsey District Council,http://statistics.data.gov.uk/id/local-authority/32UC,Enforcement Team Leader,Electricity,22/01/2015,IJ00040089,41.78,SOUTHERN ELECTRIC PLC, 
East Lindsey District Council,http://statistics.data.gov.uk/id/local-authority/32UC,Leisure Operations,Electricity,22/01/2015,IJ00040091,965.94,SOUTHERN ELECTRIC PLC, 
East Lindsey District Council,http://statistics.data.gov.uk/id/local-authority/32UC,Leisure Operations,Electricity,22/01/2015,IJ00040091,-1137.44,SOUTHERN ELECTRIC PLC, 
East Lindsey District Council,http://statistics.data.gov.uk/id/local-authority/32UC,Leisure Operations,Electricity,22/01/2015,IJ00040091,20.41,SOUTHERN ELECTRIC PLC, 
East Lindsey District Council,http://statistics.data.gov.uk/id/local-authority/32UC,Neighbourhood Services,Electricity,22/01/2015,IJ00040091,1027.23,SOUTHERN ELECTRIC PLC, 
East Lindsey District Council,http://statistics.data.gov.uk/id/local-authority/32UC,Neighbourhood Services,Electricity,22/01/2015,IJ00040091,433.57,SOUTHERN ELECTRIC PLC, 
East Lindsey District Council,http://statistics.data.gov.uk/id/local-authority/32UC,TL Property,Electricity,22/01/2015,IJ00040091,4879.61,SOUTHERN ELECTRIC PLC, 
East Lindsey District Council,http://statistics.data.gov.uk/id/local-authority/32UC,TL Property,Electricity,22/01/2015,IJ00040091,230.18,SOUTHERN ELECTRIC PLC, 
East Lindsey District Council,http://statistics.data.gov.uk/id/local-authority/32UC,Theatre Manager,Electricity,22/01/2015,IJ00040091,108.39,SOUTHERN ELECTRIC PLC, 
East Lindsey District Council,http://statistics.data.gov.uk/id/local-authority/32UC,TL Property,Electricity,22/01/2015,IJ00040091,485.06,SOUTHERN ELECTRIC PLC, 
East Lindsey District Council,http://statistics.data.gov.uk/id/local-authority/32UC,TL Property,Electricity,22/01/2015,IJ00040091,133.96,SOUTHERN ELECTRIC PLC, 
East Lindsey District Council,http://statistics.data.gov.uk/id/local-authority/32UC,Economic & Tourism,Electricity,22/01/2015,IJ00040090,1921.25,SOUTHERN ELECTRIC PLC, 
East Lindsey District Council,http://statistics.data.gov.uk/id/local-authority/32UC,Leisure Operations,Electricity,22/01/2015,IJ00040090,709.87,SOUTHERN ELECTRIC PLC, 
East Lindsey District Council,http://statistics.data.gov.uk/id/local-authority/32UC,Neighbourhood Services,Electricity,22/01/2015,IJ00040090,541.47,SOUTHERN ELECTRIC PLC, 
East Lindsey District Council,http://statistics.data.gov.uk/id/local-authority/32UC,Economic & Tourism,Electricity,22/01/2015,IJ00040090,390.11,SOUTHERN ELECTRIC PLC, 
East Lindsey District Council,http://statistics.data.gov.uk/id/local-authority/32UC,Economic & Tourism,Electricity,22/01/2015,IJ00040090,1822.80,SOUTHERN ELECTRIC PLC, 
East Lindsey District Council,http://statistics.data.gov.uk/id/local-authority/32UC,Neighbourhood Services,Electricity,22/01/2015,IJ00040090,128.28,SOUTHERN ELECTRIC PLC, 
East Lindsey District Council,http://statistics.data.gov.uk/id/local-authority/32UC,Neighbourhood Services,Electricity,22/01/2015,IJ00040090,270.64,SOUTHERN ELECTRIC PLC, 
East Lindsey District Council,http://statistics.data.gov.uk/id/local-authority/32UC,Neighbourhood Services,Electricity,22/01/2015,IJ00040090,268.85,SOUTHERN ELECTRIC PLC, 
East Lindsey District Council,http://statistics.data.gov.uk/id/local-authority/32UC,Neighbourhood Services,Electricity,22/01/2015,IJ00040090,52.26,SOUTHERN ELECTRIC PLC, 
East Lindsey District Council,http://statistics.data.gov.uk/id/local-authority/32UC,Leisure Operations,Electricity,22/01/2015,IJ00040090,358.86,SOUTHERN ELECTRIC PLC, 
East Lindsey District Council,http://statistics.data.gov.uk/id/local-authority/32UC,Customer Services Manager,Electricity,22/01/2015,IJ00040075,274.57,SOUTHERN ELECTRIC PLC, 
East Lindsey District Council,http://statistics.data.gov.uk/id/local-authority/32UC,Leisure Operations,Electricity,22/01/2015,IJ00040075,5374.37,SOUTHERN ELECTRIC PLC, 
East Lindsey District Council,http://statistics.data.gov.uk/id/local-authority/32UC,Neighbourhood Services,Electricity,22/01/2015,IJ00040075,883.10,SOUTHERN ELECTRIC PLC, 
East Lindsey District Council,http://statistics.data.gov.uk/id/local-authority/32UC,Neighbourhood Services,Electricity,22/01/2015,IJ00040075,1048.27,SOUTHERN ELECTRIC PLC, 
East Lindsey District Council,http://statistics.data.gov.uk/id/local-authority/32UC,TL Property,Electricity,22/01/2015,IJ00040075,220.78,SOUTHERN ELECTRIC PLC, 
East Lindsey District Council,http://statistics.data.gov.uk/id/local-authority/32UC,Neighbourhood Services,Electricity,22/01/2015,IJ00040075,155.96,SOUTHERN ELECTRIC PLC, 
East Lindsey District Council,http://statistics.data.gov.uk/id/local-authority/32UC,Economic & Tourism,Electricity,22/01/2015,IJ00040075,1048.86,SOUTHERN ELECTRIC PLC, 
East Lindsey District Council,http://statistics.data.gov.uk/id/local-authority/32UC,Neighbourhood Services,Electricity,22/01/2015,IJ00040075,86.27,SOUTHERN ELECTRIC PLC, 
East Lindsey District Council,http://statistics.data.gov.uk/id/local-authority/32UC,Enforcement Team Leader,Electricity,22/01/2015,IJ00040075,31.85,SOUTHERN ELECTRIC PLC, 
East Lindsey District Council,http://statistics.data.gov.uk/id/local-authority/32UC,Neighbourhood Services,Electricity,22/01/2015,IJ00040075,103.90,SOUTHERN ELECTRIC PLC, 
East Lindsey District Council,http://statistics.data.gov.uk/id/local-authority/32UC,Leisure Operations,Clothing Uniforms And Laundry,22/01/2015,IJ00040016,622.00,BADGEMASTER LTD, 
East Lindsey District Council,http://statistics.data.gov.uk/id/local-authority/32UC,Hsg Advice & Homelessness TL,Grants and Contributions- Where a Service is Received,22/01/2015,IJ00039979,560.00,LIVES, 
East Lindsey District Council,http://statistics.data.gov.uk/id/local-authority/32UC,Development Control,Stationery,22/01/2015,IJ00039976,4.05,ESPO, 
East Lindsey District Council,http://statistics.data.gov.uk/id/local-authority/32UC,Leisure Operations,Materials and Consumables,22/01/2015,IJ00039976,62.00,ESPO, 
East Lindsey District Council,http://statistics.data.gov.uk/id/local-authority/32UC,Neighbourhood Services,Materials and Consumables,22/01/2015,IJ00039976,462.00,ESPO, 
East Lindsey District Council,http://statistics.data.gov.uk/id/local-authority/32UC,Leisure Operations,Gas,22/01/2015,IJ00040125,-4664.59,ESPO, 
East Lindsey District Council,http://statistics.data.gov.uk/id/local-authority/32UC,Leisure Operations,Gas,22/01/2015,IJ00040125,1558.66,ESPO, 
East Lindsey District Council,http://statistics.data.gov.uk/id/local-authority/32UC,Leisure Operations,Gas,22/01/2015,IJ00040125,7808.27,ESPO, 
East Lindsey District Council,http://statistics.data.gov.uk/id/local-authority/32UC,Leisure Operations,Gas,22/01/2015,IJ00040125,5500.50,ESPO, 
East Lindsey District Council,http://statistics.data.gov.uk/id/local-authority/32UC,Theatre Manager,Purchase Of Goods For Resale,22/01/2015,IJ00039949,567.29,DEE BEE, 
East Lindsey District Council,http://statistics.data.gov.uk/id/local-authority/32UC,Collection Fund,Central Share of NDR Income - Government,22/01/2015,IJ00039995,1282246.00,DEPARTMENT FOR COMMUNITIES AND LOCAL, 
East Lindsey District Council,http://statistics.data.gov.uk/id/local-authority/32UC,Collection Fund,Transitional Protection Payments,22/01/2015,IJ00039995,-5955.00,DEPARTMENT FOR COMMUNITIES AND LOCAL, 
East Lindsey District Council,http://statistics.data.gov.uk/id/local-authority/32UC,Collection Fund,Contribution to Deficit (NDR),22/01/2015,IJ00039995,-41667.00,DEPARTMENT FOR COMMUNITIES AND LOCAL, 
East Lindsey District Council,http://statistics.data.gov.uk/id/local-authority/32UC,Leisure Operations,Furniture and Equipment,22/01/2015,IJ00039977,4106.96,LIFE FITNESS, 
East Lindsey District Council,http://statistics.data.gov.uk/id/local-authority/32UC,Leisure Operations,Furniture and Equipment,22/01/2015,IJ00039978,5749.75,LIFE FITNESS, 
East Lindsey District Council,http://statistics.data.gov.uk/id/local-authority/32UC,"Performance, Governance & Commissioning",Grants and Contributions to Outside Bodies- No Service Recei,22/01/2015,IJ00039962,1632.60,CONINGSBY TOWN COUNCIL, 
East Lindsey District Council,http://statistics.data.gov.uk/id/local-authority/32UC,"Performance, Governance & Commissioning",Grants and Contributions to Outside Bodies- No Service Recei,22/01/2015,IJ00040013,500.00,ANDERBY PARISH COUNCIL, 
East Lindsey District Council,http://statistics.data.gov.uk/id/local-authority/32UC,Economic & Tourism,Professional & Contractors Fees,22/01/2015,IJ00040052,815.87,JOHN MOORE SECURITY LTD, 
East Lindsey District Council,http://statistics.data.gov.uk/id/local-authority/32UC,Capital WIP,Works to Buildings (main Contractor),22/01/2015,IJ00040083,15000.00,ANDREW BLADES BUILDING SERVICES LTD, 
East Lindsey District Council,http://statistics.data.gov.uk/id/local-authority/32UC,TL Property,Electricity,22/01/2015,IJ00040097,545.05,E.ON ENERGY, 
East Lindsey District Council,http://statistics.data.gov.uk/id/local-authority/32UC,Neighbourhood Services,Electricity,22/01/2015,IJ00040097,45.07,E.ON ENERGY, 
East Lindsey District Council,http://statistics.data.gov.uk/id/local-authority/32UC,Neighbourhood Services,Electricity,22/01/2015,IJ00040097,12.14,E.ON ENERGY, 
East Lindsey District Council,http://statistics.data.gov.uk/id/local-authority/32UC,Enforcement Team Leader,Electricity,22/01/2015,IJ00040097,7.79,E.ON ENERGY, 
East Lindsey District Council,http://statistics.data.gov.uk/id/local-authority/32UC,TL Property,Electricity,22/01/2015,IJ00040097,6.07,E.ON ENERGY, 
East Lindsey District Council,http://statistics.data.gov.uk/id/local-authority/32UC,Enforcement Team Leader,Electricity,22/01/2015,IJ00040097,6.07,E.ON ENERGY, 
East Lindsey District Council,http://statistics.data.gov.uk/id/local-authority/32UC,TL Property,Electricity,22/01/2015,IJ00040097,12.14,E.ON ENERGY, 
East Lindsey District Council,http://statistics.data.gov.uk/id/local-authority/32UC,TL Property,Electricity,22/01/2015,IJ00040110,1988.48,E.ON ENERGY, 
East Lindsey District Council,http://statistics.data.gov.uk/id/local-authority/32UC,Neighbourhood Services,Electricity,22/01/2015,IJ00040110,6.79,E.ON ENERGY, 
East Lindsey District Council,http://statistics.data.gov.uk/id/local-authority/32UC,Enforcement Team Leader,Electricity,22/01/2015,IJ00040110,6.12,E.ON ENERGY, 
East Lindsey District Council,http://statistics.data.gov.uk/id/local-authority/32UC,Enforcement Team Leader,Electricity,22/01/2015,IJ00040110,7.20,E.ON ENERGY, 
East Lindsey District Council,http://statistics.data.gov.uk/id/local-authority/32UC,Enforcement Team Leader,Electricity,22/01/2015,IJ00040110,17.49,E.ON ENERGY, 
East Lindsey District Council,http://statistics.data.gov.uk/id/local-authority/32UC,Enforcement Team Leader,Electricity,22/01/2015,IJ00040110,20.02,E.ON ENERGY, 
East Lindsey District Council,http://statistics.data.gov.uk/id/local-authority/32UC,Enforcement Team Leader,Electricity,22/01/2015,IJ00040110,41.10,E.ON ENERGY, 
East Lindsey District Council,http://statistics.data.gov.uk/id/local-authority/32UC,Enforcement Team Leader,Electricity,22/01/2015,IJ00040110,8.23,E.ON ENERGY, 
East Lindsey District Council,http://statistics.data.gov.uk/id/local-authority/32UC,Enforcement Team Leader,Electricity,22/01/2015,IJ00040110,13.24,E.ON ENERGY, 
East Lindsey District Council,http://statistics.data.gov.uk/id/local-authority/32UC,Enforcement Team Leader,Electricity,22/01/2015,IJ00040110,15.48,E.ON ENERGY, 
East Lindsey District Council,http://statistics.data.gov.uk/id/local-authority/32UC,Information Technology,Computer Hardware Maintenance,22/01/2015,IJ00040040,2751.85,AXIAL SYSTEMS LTD, 
East Lindsey District Council,http://statistics.data.gov.uk/id/local-authority/32UC,Enforcement Team Leader,Payments to Bodies in Respect of Income Collected,22/01/2015,IJ00040120,1931.08,INNES ENGLAND COMMERCIAL PROPERTY, 
East Lindsey District Council,http://statistics.data.gov.uk/id/local-authority/32UC,Waste Services Manager,Postages,22/01/2015,IJ00039974,5001.60,PAGE PAPER LTD, 
East Lindsey District Council,http://statistics.data.gov.uk/id/local-authority/32UC,Hsg Advice & Homelessness TL,Grants and Contributions to Outside Bodies- No Service Recei,22/01/2015,IJ00039982,5000.00,EAST LINDSEY CITIZENS ADVICE BUREAU, 
East Lindsey District Council,http://statistics.data.gov.uk/id/local-authority/32UC,Neighbourhood Services,Agency Staff,22/01/2015,IJ00039957,663.75,THE WORKSHOP (WISBECH) LIMITED, 
East Lindsey District Council,http://statistics.data.gov.uk/id/local-authority/32UC,Neighbourhood Services,Agency Staff,22/01/2015,IJ00040015,531.00,THE WORKSHOP (WISBECH) LIMITED, 
East Lindsey District Council,http://statistics.data.gov.uk/id/local-authority/32UC,Leisure Operations,Materials and Consumables,22/01/2015,IJ00040123,156.00,ASHBY GRASS CARE, 
East Lindsey District Council,http://statistics.data.gov.uk/id/local-authority/32UC,Leisure Operations,Materials and Consumables,22/01/2015,IJ00040123,791.00,ASHBY GRASS CARE, 
East Lindsey District Council,http://statistics.data.gov.uk/id/local-authority/32UC,Information Technology,Professional & Contractors Fees,22/01/2015,IJ00040042,700.00,COMPASS POINT BUSINESS SERVICES, 
East Lindsey District Council,http://statistics.data.gov.uk/id/local-authority/32UC,Hsg Private Sector TL,Other Income,22/01/2015,IJ00040101,-557.81,THM CONSTRUCTION, 
East Lindsey District Council,http://statistics.data.gov.uk/id/local-authority/32UC,Hsg Private Sector TL,Grants and Contributions to Outside Bodies- No Service Recei,22/01/2015,IJ00040101,6247.47,THM CONSTRUCTION, 
East Lindsey District Council,http://statistics.data.gov.uk/id/local-authority/32UC,Neighbourhood Services,Water and Sewerage Charges,22/01/2015,IJ00040053,2596.92,ANGLIAN WATER, 
East Lindsey District Council,http://statistics.data.gov.uk/id/local-authority/32UC,Theatre Manager,Water and Sewerage Charges,22/01/2015,IJ00040057,883.01,ANGLIAN WATER, 
East Lindsey District Council,http://statistics.data.gov.uk/id/local-authority/32UC,Leisure Operations,Water and Sewerage Charges,22/01/2015,IJ00040081,603.94,ANGLIAN WATER, 
East Lindsey District Council,http://statistics.data.gov.uk/id/local-authority/32UC,Economic & Tourism,Water and Sewerage Charges,22/01/2015,IJ00040082,2681.54,ANGLIAN WATER, 
East Lindsey District Council,http://statistics.data.gov.uk/id/local-authority/32UC,Corporate Accounting,Professional & Contractors Fees,22/01/2015,IJ00040119,722.66,KINGS ARMOURED SECURITY SERVICES LTD, 
East Lindsey District Council,http://statistics.data.gov.uk/id/local-authority/32UC,Waste Services Manager,Fuel & Oil,22/01/2015,IJ00040105,22264.11,EMO OIL LIMITED, 
East Lindsey District Council,http://statistics.data.gov.uk/id/local-authority/32UC,"Performance, Governance & Commissioning",Grants and Contributions to Outside Bodies- No Service Recei,22/01/2015,IJ00040044,800.00,SIBSEY VILLAGE HALL, 
East Lindsey District Council,http://statistics.data.gov.uk/id/local-authority/32UC,TL Property,Professional & Contractors Fees,22/01/2015,IJ00039958,562.50,Louth Education Community Interest Company, 
East Lindsey District Council,http://statistics.data.gov.uk/id/local-authority/32UC,Enforcement Team Leader,Fuel & Oil,22/01/2015,IJ00040043,177.77,AllStar Business Solutions Ltd, 
East Lindsey District Council,http://statistics.data.gov.uk/id/local-authority/32UC,Neighbourhood Services,Fuel & Oil,22/01/2015,IJ00040043,115.19,AllStar Business Solutions Ltd, 
East Lindsey District Council,http://statistics.data.gov.uk/id/local-authority/32UC,Neighbourhood Services,Fuel & Oil,22/01/2015,IJ00040043,1048.58,AllStar Business Solutions Ltd, 
East Lindsey District Council,http://statistics.data.gov.uk/id/local-authority/32UC,Hsg Advice & Homelessness TL,Fuel & Oil,22/01/2015,IJ00040043,41.67,AllStar Business Solutions Ltd, 
East Lindsey District Council,http://statistics.data.gov.uk/id/local-authority/32UC,Neighbourhood Services,Fuel & Oil,22/01/2015,IJ00040043,658.59,AllStar Business Solutions Ltd, 
East Lindsey District Council,http://statistics.data.gov.uk/id/local-authority/32UC,Waste Services Manager,Maintenance,22/01/2015,IJ00040025,2010.20,Kier FPS Limited, 
East Lindsey District Council,http://statistics.data.gov.uk/id/local-authority/32UC,Neighbourhood Services,Maintenance,22/01/2015,IJ00040027,1301.01,Kier FPS Limited, 
East Lindsey District Council,http://statistics.data.gov.uk/id/local-authority/32UC,"Performance, Governance & Commissioning",Grants and Contributions to Outside Bodies- No Service Recei,22/01/2015,IJ00039990,703.56,FCC Recycling UK Ltd, 
East Lindsey District Council,http://statistics.data.gov.uk/id/local-authority/32UC,Economic & Tourism,Other Miscellaneous Expenses,22/01/2015,IJ00039999,815.38,Exterion Media Limited, 
East Lindsey District Council,http://statistics.data.gov.uk/id/local-authority/32UC,Hsg Private Sector TL,Other Income,22/01/2015,IJ00040100,-1413.63,D A and S Todd Ltd, 
East Lindsey District Council,http://statistics.data.gov.uk/id/local-authority/32UC,Hsg Private Sector TL,Grants and Contributions to Outside Bodies- No Service Recei,22/01/2015,IJ00040100,8513.47,D A and S Todd Ltd, 
East Lindsey District Council,http://statistics.data.gov.uk/id/local-authority/32UC,Hsg Private Sector TL,Grants and Contributions to Outside Bodies- No Service Recei,22/01/2015,IJ00040100,1319.20,D A and S Todd Ltd, 
East Lindsey District Council,http://statistics.data.gov.uk/id/local-authority/32UC,Leisure Operations,Buildings Maintenance - Programmed,22/01/2015,IJ00040068,2100.00,Poly Advisory Ltd, 
East Lindsey District Council,http://statistics.data.gov.uk/id/local-authority/32UC,Leisure Operations,Buildings Maintenance - Programmed,22/01/2015,IJ00040069,1900.00,Poly Advisory Ltd, 
East Lindsey District Council,http://statistics.data.gov.uk/id/local-authority/32UC,"Performance, Governance & Commissioning",Grants and Contributions to Outside Bodies- No Service Recei,22/01/2015,IJ00040005,1000.00,SUTTON ROVERS FOOTBALL CLUB, 
East Lindsey District Council,http://statistics.data.gov.uk/id/local-authority/32UC,"Performance, Governance & Commissioning",Grants and Contributions to Outside Bodies- No Service Recei,22/01/2015,IJ00040007,1000.00,SOUTH RESTON PARISH MEETING, 
East Lindsey District Council,http://statistics.data.gov.uk/id/local-authority/32UC,"Performance, Governance & Commissioning",Grants and Contributions to Outside Bodies- No Service Recei,22/01/2015,IJ00040008,1000.00,SOUTH RESTON PARISH MEETING, 
East Lindsey District Council,http://statistics.data.gov.uk/id/local-authority/32UC,"Performance, Governance & Commissioning",Grants and Contributions to Outside Bodies- No Service Recei,22/01/2015,IJ00040009,500.00,LOUTH LIVES FIRST RESPONDERS, 
East Lindsey District Council,http://statistics.data.gov.uk/id/local-authority/32UC,"Performance, Governance & Commissioning",Grants and Contributions to Outside Bodies- No Service Recei,22/01/2015,IJ00040012,771.50,PCC LOUTH ACTING THROUGH PCC ST JAMES LOUTH, 
East Lindsey District Council,http://statistics.data.gov.uk/id/local-authority/32UC,Development Control,Compensation,22/01/2015,IJ00040002,1835.48,REDACTED PERSONAL INFORMATION,REDACT
East Lindsey District Council,http://statistics.data.gov.uk/id/local-authority/32UC,Enforcement Team Leader,Electricity,22/01/2015,IJ00040066,1485.00,Rhum Properties LLP, 
East Lindsey District Council,http://statistics.data.gov.uk/id/local-authority/32UC,Economic & Tourism,Other Miscellaneous Expenses,22/01/2015,IJ00040115,25968.00,Liller Farms, 
East Lindsey District Council,http://statistics.data.gov.uk/id/local-authority/32UC,Hsg Private Sector TL,Other Income,29/01/2015,IJ00040248,-525.62,SIBJON BUILDERS, 
East Lindsey District Council,http://statistics.data.gov.uk/id/local-authority/32UC,Hsg Private Sector TL,Grants and Contributions to Outside Bodies- No Service Recei,29/01/2015,IJ00040248,5886.92,SIBJON BUILDERS, 
East Lindsey District Council,http://statistics.data.gov.uk/id/local-authority/32UC,Collection Fund,Precept - Lincolnshire Police,29/01/2015,IJ00040251,789708.10,LOCAL POLICE AUTHORITY FUND ACCOUNT, 
East Lindsey District Council,http://statistics.data.gov.uk/id/local-authority/32UC,Corporate Management,Other Miscellaneous Expenses,29/01/2015,IJ00040137,520.70,NEOPOST LIMITED, 
East Lindsey District Council,http://statistics.data.gov.uk/id/local-authority/32UC,Waste Services Manager,Advertising - Events,29/01/2015,IJ00040283,830.00,F W CUPIT PRINTERS LIMITED, 
East Lindsey District Council,http://statistics.data.gov.uk/id/local-authority/32UC,Collection Fund,Precept- Lincolnshire County Council,29/01/2015,IJ00040252,4341195.00,LINCOLNSHIRE COUNTY COUNCIL, 
East Lindsey District Council,http://statistics.data.gov.uk/id/local-authority/32UC,Collection Fund,Share of NDR Income - Lincolnshire,29/01/2015,IJ00040252,310145.00,LINCOLNSHIRE COUNTY COUNCIL, 
East Lindsey District Council,http://statistics.data.gov.uk/id/local-authority/32UC,BALANCE  SHEET,Payroll-Unison,29/01/2015,IJ00040216,1316.70,UNISON, 
East Lindsey District Council,http://statistics.data.gov.uk/id/local-authority/32UC,Revenues & Benefits,Other Miscellaneous Expenses,29/01/2015,IJ00040225,3385.24,ALLPAY NET LTD, 
East Lindsey District Council,http://statistics.data.gov.uk/id/local-authority/32UC,Revenues & Benefits,Other Miscellaneous Expenses,29/01/2015,IJ00040225,69.87,ALLPAY NET LTD, 
East Lindsey District Council,http://statistics.data.gov.uk/id/local-authority/32UC,Corporate Management,Other Miscellaneous Expenses,29/01/2015,IJ00040241,1085.50,SOLACE ENTERPRISES LTD, 
East Lindsey District Council,http://statistics.data.gov.uk/id/local-authority/32UC,Development Control,Stationery,29/01/2015,IJ00040189,6.95,ESPO, 
East Lindsey District Council,http://statistics.data.gov.uk/id/local-authority/32UC,Neighbourhood Services,Materials and Consumables,29/01/2015,IJ00040189,173.97,ESPO, 
East Lindsey District Council,http://statistics.data.gov.uk/id/local-authority/32UC,Leisure Operations,Materials and Consumables,29/01/2015,IJ00040189,31.35,ESPO, 
East Lindsey District Council,http://statistics.data.gov.uk/id/local-authority/32UC,Leisure Operations,Furniture and Equipment,29/01/2015,IJ00040189,76.50,ESPO, 
East Lindsey District Council,http://statistics.data.gov.uk/id/local-authority/32UC,Leisure Operations,Furniture and Equipment,29/01/2015,IJ00040189,84.00,ESPO, 
East Lindsey District Council,http://statistics.data.gov.uk/id/local-authority/32UC,Economic & Tourism,Stationery,29/01/2015,IJ00040189,73.41,ESPO, 
East Lindsey District Council,http://statistics.data.gov.uk/id/local-authority/32UC,Leisure Operations,Fixtures And Fittings,29/01/2015,IJ00040189,736.00,ESPO, 
East Lindsey District Council,http://statistics.data.gov.uk/id/local-authority/32UC,Hsg Advice & Homelessness TL,Stationery,29/01/2015,IJ00040189,16.65,ESPO, 
East Lindsey District Council,http://statistics.data.gov.uk/id/local-authority/32UC,Hsg Private Sector TL,Grants and Contributions to Outside Bodies- No Service Recei,29/01/2015,IJ00040250,1425.00,OBAM STAIRLIFTS, 
East Lindsey District Council,http://statistics.data.gov.uk/id/local-authority/32UC,"Performance, Governance & Commissioning",Grants and Contributions to Outside Bodies- No Service Recei,29/01/2015,IJ00040223,1485.00,ALFORD AND DISTRICT CIVIC TRUST, 
East Lindsey District Council,http://statistics.data.gov.uk/id/local-authority/32UC,BALANCE  SHEET,ST Creditors NNDR Central Government,29/01/2015,IJ00040162,417220.00,DEPARTMENT FOR COMMUNITIES AND LOCAL, 
East Lindsey District Council,http://statistics.data.gov.uk/id/local-authority/32UC,BALANCE  SHEET,ST Creditors NNDR Central Government,29/01/2015,IJ00040162,63721.00,DEPARTMENT FOR COMMUNITIES AND LOCAL, 
East Lindsey District Council,http://statistics.data.gov.uk/id/local-authority/32UC,BALANCE  SHEET,Payroll-Cons Group Savings,29/01/2015,IJ00040203,570.00,ELDC CONSERVATIVE GROUP, 
East Lindsey District Council,http://statistics.data.gov.uk/id/local-authority/32UC,"Performance, Governance & Commissioning",Grants and Contributions to Outside Bodies- No Service Recei,29/01/2015,IJ00040142,500.00,GRIMOLDBY CRICKET CLUB, 
East Lindsey District Council,http://statistics.data.gov.uk/id/local-authority/32UC,Planning Policy,Other Miscellaneous Expenses,29/01/2015,IJ00040196,1675.00,HASKONING UK LTD, 
East Lindsey District Council,http://statistics.data.gov.uk/id/local-authority/32UC,Hsg Private Sector TL,Other Income,29/01/2015,IJ00040246,-623.03,ANDREW BLADES BUILDING SERVICES LTD, 
East Lindsey District Council,http://statistics.data.gov.uk/id/local-authority/32UC,Hsg Private Sector TL,Grants and Contributions to Outside Bodies- No Service Recei,29/01/2015,IJ00040246,6977.90,ANDREW BLADES BUILDING SERVICES LTD, 
East Lindsey District Council,http://statistics.data.gov.uk/id/local-authority/32UC,BALANCE  SHEET,Payroll-Gmbatu,29/01/2015,IJ00040212,647.08,GMB NATIONAL ADMINISTRATION UNIT, 
East Lindsey District Council,http://statistics.data.gov.uk/id/local-authority/32UC,"Performance, Governance & Commissioning",Grants and Contributions to Outside Bodies- No Service Recei,29/01/2015,IJ00040164,500.00,LINCOLN & LINDSEY BLIND SOCIETY, 
East Lindsey District Council,http://statistics.data.gov.uk/id/local-authority/32UC,Enforcement Team Leader,Payments to Bodies in Respect of Income Collected,29/01/2015,IJ00040198,1718.98,INNES ENGLAND COMMERCIAL PROPERTY, 
East Lindsey District Council,http://statistics.data.gov.uk/id/local-authority/32UC,Enforcement Team Leader,Payments to Bodies in Respect of Income Collected,29/01/2015,IJ00040199,3255.30,INNES ENGLAND COMMERCIAL PROPERTY, 
East Lindsey District Council,http://statistics.data.gov.uk/id/local-authority/32UC,Development Control,Banking Charges,29/01/2015,IJ00040158,4.82,CAPITA BUSINESS SERVICES LTD, 
East Lindsey District Council,http://statistics.data.gov.uk/id/local-authority/32UC,Corporate Management,Banking Charges,29/01/2015,IJ00040158,44.74,CAPITA BUSINESS SERVICES LTD, 
East Lindsey District Council,http://statistics.data.gov.uk/id/local-authority/32UC,Corporate Management,Banking Charges,29/01/2015,IJ00040158,2187.50,CAPITA BUSINESS SERVICES LTD, 
East Lindsey District Council,http://statistics.data.gov.uk/id/local-authority/32UC,Corporate Management,Banking Charges,29/01/2015,IJ00040158,40.06,CAPITA BUSINESS SERVICES LTD, 
East Lindsey District Council,http://statistics.data.gov.uk/id/local-authority/32UC,Corporate Management,Banking Charges,29/01/2015,IJ00040158,40.45,CAPITA BUSINESS SERVICES LTD, 
East Lindsey District Council,http://statistics.data.gov.uk/id/local-authority/32UC,Corporate Accounting,Banking Charges,29/01/2015,IJ00040158,780.22,CAPITA BUSINESS SERVICES LTD, 
East Lindsey District Council,http://statistics.data.gov.uk/id/local-authority/32UC,Hsg Private Sector TL,Grants and Contributions to Outside Bodies- No Service Recei,29/01/2015,IJ00040245,1110.00,DOLPHIN MOBILITY EAST MIDLANDS, 
East Lindsey District Council,http://statistics.data.gov.uk/id/local-authority/32UC,Corporate Management,Staff Training Expenses,29/01/2015,IJ00040140,999.00,EQV (UK) LTD, 
East Lindsey District Council,http://statistics.data.gov.uk/id/local-authority/32UC,Revenues & Benefits,CPBS Non Base Contract Costs,29/01/2015,IJ00040228,13245.00,COMPASS POINT BUSINESS SERVICES, 
East Lindsey District Council,http://statistics.data.gov.uk/id/local-authority/32UC,Information Technology,External Printing and Design Costs,29/01/2015,IJ00040222,11958.48,COMPASS POINT BUSINESS SERVICES, 
East Lindsey District Council,http://statistics.data.gov.uk/id/local-authority/32UC,Hsg Private Sector TL,Other Income,29/01/2015,IJ00040247,-679.43,HARRIS BUILDING SERVICES, 
East Lindsey District Council,http://statistics.data.gov.uk/id/local-authority/32UC,Hsg Private Sector TL,Grants and Contributions to Outside Bodies- No Service Recei,29/01/2015,IJ00040247,7609.66,HARRIS BUILDING SERVICES, 
East Lindsey District Council,http://statistics.data.gov.uk/id/local-authority/32UC,"Performance, Governance & Commissioning",Grants and Contributions to Outside Bodies- No Service Recei,29/01/2015,IJ00040259,600.00,SIBSEY PARENT & TODDLER GROUP, 
East Lindsey District Council,http://statistics.data.gov.uk/id/local-authority/32UC,Hsg Private Sector TL,Other Income,29/01/2015,IJ00040249,-530.40,THM CONSTRUCTION, 
East Lindsey District Council,http://statistics.data.gov.uk/id/local-authority/32UC,Hsg Private Sector TL,Grants and Contributions to Outside Bodies- No Service Recei,29/01/2015,IJ00040249,4515.44,THM CONSTRUCTION, 
East Lindsey District Council,http://statistics.data.gov.uk/id/local-authority/32UC,Hsg Private Sector TL,Other Income,29/01/2015,IJ00040233,-80.83,MINSTER HOME IMPROVEMENTS LTD, 
East Lindsey District Council,http://statistics.data.gov.uk/id/local-authority/32UC,Hsg Private Sector TL,Grants and Contributions to Outside Bodies- No Service Recei,29/01/2015,IJ00040233,905.34,MINSTER HOME IMPROVEMENTS LTD, 
East Lindsey District Council,http://statistics.data.gov.uk/id/local-authority/32UC,"Performance, Governance & Commissioning",Grants and Contributions to Outside Bodies- No Service Recei,29/01/2015,IJ00040263,1000.00,BURGH VILLAGE HALL & COMMUNITY COMPLEX, 
East Lindsey District Council,http://statistics.data.gov.uk/id/local-authority/32UC,BALANCE  SHEET,Long Term Debtors - Other,29/01/2015,IJ00040282,4000.00,REDACTED PERSONAL INFORMATION,REDACT
East Lindsey District Council,http://statistics.data.gov.uk/id/local-authority/32UC,Corporate Management,Staff Training Expenses,29/01/2015,IJ00040188,2265.00,TOTEM TRAINING, 
East Lindsey District Council,http://statistics.data.gov.uk/id/local-authority/32UC,"Performance, Governance & Commissioning",Grants and Contributions to Outside Bodies- No Service Recei,29/01/2015,IJ00040145,500.00,HONEYSUCKLE CLUB, 
East Lindsey District Council,http://statistics.data.gov.uk/id/local-authority/32UC,"Performance, Governance & Commissioning",Other Miscellaneous Expenses,29/01/2015,IJ00040266,534.60,LOCAL WORLD, 
East Lindsey District Council,http://statistics.data.gov.uk/id/local-authority/32UC,Theatre Manager,Performers and Entertainers Fees,29/01/2015,IJ00040230,14517.97,PHIL MCINTYRE ENTERTAINMENTS LTD, 
East Lindsey District Council,http://statistics.data.gov.uk/id/local-authority/32UC,Hsg Private Sector TL,Grants and Contributions to Outside Bodies- No Service Recei,29/01/2015,IJ00040243,4017.49,Brothertoft Build Ltd, 
East Lindsey District Council,http://statistics.data.gov.uk/id/local-authority/32UC,Hsg Private Sector TL,Other Income,29/01/2015,IJ00040244,-479.19,Brothertoft Build Ltd, 
East Lindsey District Council,http://statistics.data.gov.uk/id/local-authority/32UC,Hsg Private Sector TL,Grants and Contributions to Outside Bodies- No Service Recei,29/01/2015,IJ00040244,5366.95,Brothertoft Build Ltd, 
East Lindsey District Council,http://statistics.data.gov.uk/id/local-authority/32UC,Corporate Accounting,Insurance,29/01/2015,IJ00040135,708.33,Phoenix Liability Services, 
East Lindsey District Council,http://statistics.data.gov.uk/id/local-authority/32UC,Capital WIP,"Purchase of Plant, Machinery & Equipment",29/01/2015,IJ00040192,679.44,SCENERGY LIMITED, 
East Lindsey District Council,http://statistics.data.gov.uk/id/local-authority/32UC,Hsg Private Sector TL,Other Income,29/01/2015,IJ00040242,-573.91,Belton Construction, 
East Lindsey District Council,http://statistics.data.gov.uk/id/local-authority/32UC,Hsg Private Sector TL,Grants and Contributions to Outside Bodies- No Service Recei,29/01/2015,IJ00040242,4470.31,Belton Construction, 
East Lindsey District Council,http://statistics.data.gov.uk/id/local-authority/32UC,Hsg Private Sector TL,Grants and Contributions to Outside Bodies- No Service Recei,29/01/2015,IJ00040242,847.50,Belton Construction, 
East Lindsey District Council,http://statistics.data.gov.uk/id/local-authority/32UC,Waste Services Manager,Maintenance,29/01/2015,IJ00040281,596.80,Innovative Safety Systems Limited, 
East Lindsey District Council,http://statistics.data.gov.uk/id/local-authority/32UC,Economic & Tourism,Other Miscellaneous Expenses,29/01/2015,IJ00040194,5000.00,Countryside Training Partnership Ltd, 
East Lindsey District Council,http://statistics.data.gov.uk/id/local-authority/32UC,"Performance, Governance & Commissioning",Grants and Contributions to Outside Bodies- No Service Recei,29/01/2015,IJ00040144,510.00,Willoughby fete Association, 
East Lindsey District Council,http://statistics.data.gov.uk/id/local-authority/32UC,"Performance, Governance & Commissioning",Grants and Contributions to Outside Bodies- No Service Recei,29/01/2015,IJ00040166,1000.00,Louth Tennis United, 
East Lindsey District Council,http://statistics.data.gov.uk/id/local-authority/32UC,Environment Team Leader,Grants and Contributions to Outside Bodies- No Service Recei,29/01/2015,IJ00040220,525.00,REDACTED PERSONAL INFORMATION,REDACT
East Lindsey District Council,http://statistics.data.gov.uk/id/local-authority/32UC,Leisure Operations,Leisure Management,29/01/2015,IJ00040264,1866859.80,MAGNA VITAE, 
East Lindsey District Council,http://statistics.data.gov.uk/id/local-authority/32UC,BALANCE  SHEET,Payroll-Fitness,29/01/2015,IJ00040286,743.10,MAGNA VITAE, 
